Workbook

Sheet AEP Tariffs
B4: AEP Texas Tariffs

Sheet TNCRate code Table
A1: AEP TEXAS - NORTH AREA | Z1: 820 | AA1: =VLOOKUP(Z$1,A$8:C$106,3,FALSE) -> Residential
Z2: FALSE
A3: 941 | Z3: =ISNA(VLOOKUP(Z$1,A$8:A$106,1,FALSE)) -> FALSE
A6: Tariff | B6: AEP Texas - North Area
A7: Code | B7: Tariffs | C7: Additional Tariff Description
A8: 820 | B8: Residential Service | C8: Residential
A9: 824 | B9: Secondary Voltage Service Less Than or Equal to 10 kW | C9: Metered Highway Safety Lighting
A10: 825 | B10: Secondary Voltage Service Less Than or Equal to 10 kW | C10: Customer Owned Lighting
A11: 829 | B11: Secondary Voltage Service Less Than or Equal to 10 kW | C11: Commercial
A12: 830 | B12: Secondary Voltage Service Greater Then 10 kW | C12: Commercial Service (w/o demand meter)
A13: 831 | B13: Secondary Voltage Service Greater Then 10 kW | C13: Cotton Gin Service (w/o demand meter)
A14: 832 | B14: Secondary Voltage Service Greater Then 10 kW | C14: Commercial Heating (w/o demand meter)
A15: 833 | B15: Secondary Voltage Service Greater Then 10 kW | C15: Mun. Water Pump (w/o demand meter)
A16: 835 | B16: Secondary Voltage Service Greater Then 10 kW | C16: Customer Owned Lighting
A17: 836 | B17: Secondary Voltage Service Greater Then 10 kW | C17: Non-IDR Meter
A18: 837 | B18: Secondary Voltage Service Greater Then 10 kW | C18: IDR Meter
A19: 838 | B19: Secondary Voltage Service Greater Then 10 kW | C19: Agriculture Non-IDR Meter
A20: 839 | B20: Secondary Voltage Service Greater Then 10 kW | C20: Agriculture with IDR Meter
A21: 841 | B21: Primary Voltage Service | C21: Non-IDR Meter
A22: 842 | B22: Primary Voltage Service | C22: IDR Meter
A23: 844 | B23: Primary Voltage Service | C23: Agriculture Non-IDR Meter
A24: 845 | B24: Primary Voltage Service | C24: Agriculture with IDR Meter
A25: 846 | B25: Primary Voltage Service | C25: Seasonal Agriculture Non-IDR Meter
A26: 847 | B26: Primary Voltage Service | C26: Seasonal Agriculture with IDR Meter
A27: 850 | B27: Secondary Voltage Service Less Than or Equal to 10 kW | C27: Unmetered
A28: 852 | B28: Secondary Voltage Service Less Than or Equal to 10 kW | C28: Unmetered Customer Owned Flood Lighting
A29: 857 | B29: Secondary Voltage Service Greater Then 10 kW | C29: Seasonal Agriculture Non-IDR Meter
A30: 858 | B30: Secondary Voltage Service Greater Then 10 kW | C30: Seasonal Agriculture with IDR Meter
A31: 860 | B31: Transmission Voltage Service | C31: Non Industrial
A32: 861 | B32: Transmission Voltage Service | C32: Industrial - Inside City Limits
A33: 862 | B33: Transmission Voltage Service | C33: Industrial - Outside City Limits
A34: 901 | B34: Non-Roadway Lighting Service | C34: 175 W Mercury Vapor
A35: 902 | B35: Non-Roadway Lighting Service | C35: 400 W Mercury Vapor
A36: 903 | B36: Non-Roadway Lighting Service | C36: 70 W High Pressure Sodium
A37: 904 | B37: Non-Roadway Lighting Service | C37: 150 W High Pressure Sodium
A38: 905 | B38: Non-Roadway Lighting Service | C38: 35 W Low Pressure Sodium
A39: 906 | B39: Non-Roadway Lighting Service | C39: 55 W Low Pressure Sodium
A40: 907 | B40: Non-Roadway Lighting Service | C40: 90 W Low Pressure Sodium
A41: 908 | B41: Non-Roadway Lighting Service | C41: 150 W HPS Floodlight
A42: 909 | B42: Non-Roadway Lighting Service | C42: 250 W HPS Floodlight
A43: 910 | B43: Non-Roadway Lighting Service | C43: 400 W HPS Floodlight
A44: 911 | B44: Non-Roadway Lighting Service | C44: 1000 W HPS Floodlight
A45: 912 | B45: Non-Roadway Lighting Service | C45: 250 W Metal Halide Floodlight
A46: 913 | B46: Non-Roadway Lighting Service | C46: 400 W Metal Halide Floodlight
A47: 914 | B47: Non-Roadway Lighting Service | C47: 1000 W Metal Halide Floodlight
A48: 915 | B48: Non-Roadway Lighting Service | C48: 100 W High Pressure Sodium
A49: 916 | B49: Non-Roadway Lighting Service | C49: 250 W High Pressure Sodium
A50: 917 | B50: Non-Roadway Lighting Service | C50: 100 W HPS Floodlight
A51: 932 | B51: Municipal Street Lighting Service | C51: 175 W Mercury Vapor
A52: 935 | B52: Municipal Street Lighting Service | C52: 400 W Mercury Vapor
A53: 936 | B53: Municipal Street Lighting Service | C53: Twin 400 W Mercury Vapor
A54: 940 | B54: Municipal Street Lighting Service | C54: 35 W LPS
A55: 941 | B55: Municipal Street Lighting Service | C55: 55 W LPS
A56: 942 | B56: Municipal Street Lighting Service | C56: 90 W LPS
A57: 943 | B57: Municipal Street Lighting Service | C57: Twin 90 W LPS
A58: 944 | B58: Municipal Street Lighting Service | C58: 70 W HPS
A59: 945 | B59: Municipal Street Lighting Service | C59: 100 W HPS
A60: 946 | B60: Municipal Street Lighting Service | C60: 150 W HPS
A61: 947 | B61: Municipal Street Lighting Service | C61: 250 W HPS
A62: 948 | B62: Municipal Street Lighting Service | C62: Twin 150 W HPS
A63: 949 | B63: Municipal Street Lighting Service | C63: 400 W HPS
A64: 950 | B64: Municipal Street Lighting Service | C64: Twin 250 W HPS
A65: 955 | B65: Municipal Street Lighting Service | C65: 1000 W HPS
A66: 965 | B66: Municipal Street Lighting Service | C66: 400 W Metal Halide
A67: 966 | B67: Municipal Street Lighting Service | C67: 1000 W Metal Halide
A68: 971 | B68: Municipal Street Lighting Service | C68: 500 W Incandescent

Sheet SharyRate code Table
A1: AEP TEXAS - SHARYLAND AREA | Z1: 990 | AA1: =VLOOKUP(Z$1,A$8:C$102,3,FALSE) -> 150 W High Pressure Sodium
Z2: FALSE
Z3: =ISNA(VLOOKUP(Z$1,A$8:A$102,1,FALSE)) -> FALSE
B5: 836
A6: Tariff | B6: AEP Texas - Sharyland Area
A7: Code | B7: Tariffs | C7: Additional Tariff Description
A8: 822 | B8: Residential Service | C8: Residential
A9: 825 | B9: Secondary Voltage Service Less Than or Equal to 10 kW | C9: Commercial Energy without IDR meter
A10: 881 | B10: Secondary Voltage Service Greater Then 10 kW | C10: Commercial Demand Without IDR Meter
A11: 882 | B11: Secondary Voltage Service Greater Then 10 kW | C11: Commercial Demand With IDR Meter
A12: 990 | B12: Municipal Street Lighting Service | C12: 150 W High Pressure Sodium
A13: 991 | B13: Municipal Street Lighting Service | C13: 250 W High Pressure Sodium
A14: 992 | B14: Municipal Street Lighting Service | C14: 400 W High Pressure Sodium
A15: 993 | B15: Municipal Street Lighting Service | C15: 175 W Metal Halide
A16: 994 | B16: Municipal Street Lighting Service | C16: 400 W Metal Halide
A71: 946 | B71: Municipal Street Lighting Service | C71: 150 W High Pressure Sodium
A72: 947 | B72: Municipal Street Lighting Service | C72: 250 W High Pressure Sodium
A73: 949 | B73: Municipal Street Lighting Service | C73: 400 W High Pressure Sodium
A79: 960 | B79: Municipal Street Lighting Service | C79: 175 W Metal Halide
A81: 962 | B81: Municipal Street Lighting Service | C81: 400 W Metal Halide

Sheet TCCRate code Table
A1: AEP TEXAS - CENTRAL AREA | Z1: 945 | AA1: =VLOOKUP(Z$1,A$8:C$102,3,FALSE) -> 100 W High Pressure Sodium
Z2: FALSE
A3: 890 | Z3: =ISNA(VLOOKUP(Z$1,A$8:A$102,1,FALSE)) -> FALSE
B5: 836
A6: Tariff | B6: AEP Texas - Central Area
A7: Code | B7: Tariffs | C7: Additional Tariff Description
A8: 820 | B8: Residential Service | C8: Residential
A9: 826 | B9: Secondary Voltage Service Less Than or Equal to 10 kW | C9: Recreational Night Lighting
A10: 827 | B10: Secondary Voltage Service Less Than or Equal to 10 kW | C10: Commercial Demand without IDR meter
A11: 828 | B11: Secondary Voltage Service Less Than or Equal to 10 kW | C11: Municipal Water Pumping & Cotton Gins
A12: 829 | B12: Secondary Voltage Service Less Than or Equal to 10 kW | C12: Commercial Energy without IDR meter
A13: 830 | B13: Secondary Voltage Service Greater Then 10 kW | C13: Recreational Night Lighting
A14: 831 | B14: Secondary Voltage Service Greater Then 10 kW | C14: Cotton Gin without IDR meter
A15: 833 | B15: Secondary Voltage Service Greater Then 10 kW | C15: Municipal Water Pumping with demand meter without IDR
A16: 834 | B16: Secondary Voltage Service Greater Then 10 kW | C16: Municipal Water Pumping with IDR meter
A17: 835 | B17: Secondary Voltage Service Greater Then 10 kW | C17: Cotton Gin with IDR Meter
A18: 836 | B18: Secondary Voltage Service Greater Then 10 kW | C18: Seasonal Ag without IDR Meter
A19: 837 | B19: Secondary Voltage Service Greater Then 10 kW | C19: Seasonal Ag with IDR Meter
A20: 838 | B20: Secondary Voltage Service Greater Then 10 kW | C20: Irrigation without IDR Meter
A21: 839 | B21: Secondary Voltage Service Greater Then 10 kW | C21: Irrigation with IDR Meter
A22: 841 | B22: Primary Voltage Service | C22: Without IDR Meter
A23: 842 | B23: Primary Voltage Service | C23: With IDR Meter
A24: 844 | B24: Primary Voltage Service | C24: Irrigation Without IDR Meter
A25: 845 | B25: Primary Voltage Service | C25: Irrigation With IDR Meter
A26: 846 | B26: Primary Voltage Service | C26: Seasonal Ag without IDR Meter
A27: 847 | B27: Primary Voltage Service | C27: Seasonal Ag with IDR Meter
A28: 848 | B28: Primary Voltage Service | C28: Municipal Water Pumping Without IDR Meter
A29: 849 | B29: Primary Voltage Service | C29: Municipal Water Pumping With IDR Meter
A30: 850 | B30: Secondary Voltage Service Less Than or Equal to 10 kW | C30: Unmetered
A31: 851 | B31: Secondary Voltage Service Less Than or Equal to 10 kW | C31: Unmetered Cust Owned Street Light, Traffic Signal
A32: 852 | B32: Secondary Voltage Service Less Than or Equal to 10 kW | C32: Unmetered Customer Owned Flood Lights
A33: 853 | B33: Secondary Voltage Service Greater Then 10 kW | C33: Commercial Demand TC/CTC (Machine billed-4CP)
A34: 855 | B34: Secondary Voltage Service Greater Then 10 kW | C34: Commercial Energy Without IDR Meter
A35: 856 | B35: Secondary Voltage Service Greater Then 10 kW | C35: Commercial Energy With IDR Meter
A36: 857 | B36: Secondary Voltage Service Greater Then 10 kW | C36: Commercial Demand Without IDR Meter
A37: 858 | B37: Secondary Voltage Service Greater Then 10 kW | C37: Commercial Demand With IDR Meter
A38: 860 | B38: Transmission Voltage Service | C38: Non Industrial
A39: 861 | B39: Transmission Voltage Service | C39: Lg Industrial Firm TC
A40: 863 | B40: Transmission Voltage Service | C40: Non Industrial Commercial Demand TC/CTC
A41: 864 | B41: Transmission Voltage Service | C41: Non Industrial Standby Non-Firm
A42: 865 | B42: Transmission Voltage Service | C42: Non Industrial Non-Firm
A43: 866 | B43: Transmission Voltage Service | C43: Non Industrial (Machine billed-Hist. TC)
A44: 870 | B44: Transmission Voltage Service | C44: Lg Ind Standby Firm Outside City
A45: 871 | B45: Transmission Voltage Service | C45: Lg Ind Non-Firm Outside City
A46: 872 | B46: Transmission Voltage Service | C46: Lg Ind Standby Non Firm Outside City
A47: 873 | B47: Transmission Voltage Service | C47: Lg Ind Non-Firm Inside City
A48: 874 | B48: Transmission Voltage Service | C48: Lg Ind Firm - Outside City Limit
A49: 875 | B49: Transmission Voltage Service | C49: Lg Ind Firm - Inside City Limit
A50: 901 | B50: Non-Roadway Lighting Service | C50: 175 W Mercury Vapor
A51: 902 | B51: Non-Roadway Lighting Service | C51: 400 W Mercury Vapor
A52: 903 | B52: Non-Roadway Lighting Service | C52: 100 W High Pressure Sodium
A53: 904 | B53: Non-Roadway Lighting Service | C53: 150 W High Pressure Sodium
A54: 905 | B54: Non-Roadway Lighting Service | C54: 250 W High Pressure Sodium
A55: 906 | B55: Non-Roadway Lighting Service | C55: 100 W High Pressure Sodium Floodlight
A56: 907 | B56: Non-Roadway Lighting Service | C56: 250 W High Pressure Sodium Floodlight
A57: 908 | B57: Non-Roadway Lighting Service | C57: 400 W High Pressure Sodium Floodlight
A58: 909 | B58: Non-Roadway Lighting Service | C58: 1000 W High Pressure Sodium Floodlight
A59: 910 | B59: Non-Roadway Lighting Service | C59: 250 W Metal Halide Floodlight
A60: 911 | B60: Non-Roadway Lighting Service | C60: 400 W Metal Halide Floodlight
A61: 912 | B61: Non-Roadway Lighting Service | C61: 1000 W 6X7 Floodlight
A62: 913 | B62: Non-Roadway Lighting Service | C62: 1000 W 3X3 Floodlight
A63: 931 | B63: Municipal Street Lighting Service | C63: 100 W Mercury Vapor
A64: 932 | B64: Municipal Street Lighting Service | C64: 175 W Mercury Vapor
A65: 933 | B65: Municipal Street Lighting Service | C65: 250 W Mercury Vapor
A66: 935 | B66: Municipal Street Lighting Service | C66: 400 W Mercury Vapor
A67: 937 | B67: Municipal Street Lighting Service | C67: 1000 W Mercury Vapor
A68: 938 | B68: Municipal Street Lighting Service | C68: Twin 400 W Mercury Vapor
A69: 944 | B69: Municipal Street Lighting Service | C69: 70 W High Pressure Sodium
A70: 945 | B70: Municipal Street Lighting Service | C70: 100 W High Pressure Sodium
A71: 946 | B71: Municipal Street Lighting Service | C71: 150 W High Pressure Sodium
A72: 947 | B72: Municipal Street Lighting Service | C72: 250 W High Pressure Sodium
A73: 949 | B73: Municipal Street Lighting Service | C73: 400 W High Pressure Sodium
A74: 952 | B74: Municipal Street Lighting Service | C74: Twin 150 W High Pressure Sodium
A75: 953 | B75: Municipal Street Lighting Service | C75: Twin 250 W High Pressure Sodium
A76: 954 | B76: Municipal Street Lighting Service | C76: Twin 400 W High Pressure Sodium
A77: 955 | B77: Municipal Street Lighting Service | C77: 1,000 W High Pressure Sodium
A78: 959 | B78: Municipal Street Lighting Service | C78: 150 W Metal Halide
A79: 960 | B79: Municipal Street Lighting Service | C79: 175 W Metal Halide
A80: 961 | B80: Municipal Street Lighting Service | C80: 250 W Metal Halide
A81: 962 | B81: Municipal Street Lighting Service | C81: 400 W Metal Halide
A82: 964 | B82: Municipal Street Lighting Service | C82: Twin 250 W Metal Halide
A83: 965 | B83: Municipal Street Lighting Service | C83: Twin 400 W Metal Halide
A84: 966 | B84: Municipal Street Lighting Service | C84: 1,000 W Metal Halide
A85: 975 | B85: Municipal Street Lighting Service | C85: 400 W Metal Halide McAllen, Odem and Uvalde
A86: 976 | B86: Municipal Street Lighting Service | C86: 175 W Post Top McAllen, Odem and Uvalde
A87: 977 | B87: Municipal Street Lighting Service | C87: 100 W Post Top McAllen, Odem and Uvalde
A88: 978 | B88: Municipal Street Lighting Service | C88: 150 W Metal Halide Post Top McAllen, Odem and Uvalde

Sheet Discretionary Fees
A3: Discretionary Charges for AEP TX - Central Area, North Area, and Sharyland Area
C4: Central & | D4: Central & | E4: Central & | F4: North | G4: North | H4: North
C5: Sharyland Areas | D5: Sharyland Areas | E5: Sharyland Areas | F5: Area | G5: Area | H5: Area | I5: 810_02
C6: Standard Mtr | D6: Non-Standard Mtr | E6: AMS-M-Mtr | F6: Standard Mtr | G6: Non-Standard Mtr | H6: AMS-M-Mtr | I6: SAC04
A7: Description of Charge or Rider | I7: Code
A8: Mandatory Services
A9: Standard Move-in
B10: Self -Contained Meter (existing) | D10: N/A | E10: 3 | F10: 0 | G10: N/A | H10: 1 | I10: SER019
B11: Self -Contained Meter (New) | C11: 47 | D11: N/A | F11: 51 | H11: 51 | I11: SER019
B12: CT/Other Meter (existing) | D12: 102 | F12: 0 | G12: 110 | H12: 110 | I12: SER015
B13: CT/Other Meter (New) | D13: 301 | F13: 0 | G13: 305 | H13: 305 | I13: SER015
A14: Priority Move-in
B15: Self -Contained Meter (existing) | C15: 0 | D15: N/A | E15: 9 | F15: 0 | G15: N/A | H15: 5 | I15: SER019
B16: CT/Other Meter (existing) | D16: 152 | E16: 152 | F16: 0 | G16: 163 | H16: 163 | I16: SER015
A17: Move-Out (Fee is included in the Move-in Charge) | C17: Included in Move-In | D17: Included in Move-In | E17: Included in Move-In | F17: Included in Move-In | G17: Included in Move-In | H17: Included in Move-In
A18: Customer Requested Clearance (Temporary Disconnect)
B19: With three Business Days Notice (residential) | C19: 0 | F19: 0 | I19: SER131
B20: With three Business Days Notice (non - residential) | C20: 0 | F20: 0 | I20: SER131
B21: With less than Three Business Days notice | C21: As Calculated | D21: As Calculated | E21: As Calculated | F21: As Calculated | G21: As Calculated | H21: As Calculated | I21: SER131
A22: Disconnect for Non-Pay (DNP)
B23: At Meter
B24: Standard Disconnect | C24: 0 | D24: 20 | E24: 20 | F24: 0 | G24: 21 | H24: 21 | I24: SER024
B25: Same Day (Priority) Disconnect | C25: Not Available | F25: Not Available | I25: SER024
B26: Holiday | C26: Not Available | F26: Not Available
B27: At Premium Location (i.e. pole, weatherhead, secondary box)
B28: Same Day (Priority) Disconnect | C28: 56 | D28: 56 | E28: 56 | F28: 58 | G28: 58 | H28: 58 | I28: SER026
C29: Not Available | F29: Not Available | I29: SER026
B30: Holiday | C30: Not Available | F30: Not Available
A31: Reconnect After Disconnect for Non-Pay (DNP)
B32: At Meter
B33: Standard Reconnect | C33: $ - | D33: 20 | E33: 20 | F33: 0 | G33: 11 | H33: 11 | I33: SER030
B34: Same Day (Priority) Reconnect | C34: $ - | D34: 38 | E34: 38 | F34: 0 | G34: 39 | H34: 39 | I34: SER031
B35: Weekend | C35: $ - | D35: 48 | E35: 48 | F35: 0 | G35: 53 | H35: 53 | I35: SER032
B36: Holiday | C36: $ - | D36: 60 | E36: 60 | F36: 0 | G36: 66 | H36: 66 | I36: SER033
B37: At Premium Location (i.e. pole, weatherhead, secondary box)
B38: Standard Reconnect | C38: 56 | D38: 56 | E38: 56 | F38: 58 | G38: 58 | H38: 58 | I38: SER034
B39: Same Day (Priority) Reconnect | C39: 107 | D39: 107 | E39: 107 | F39: 110 | G39: 110 | H39: 110 | I39: SER029
B40: Weekend | C40: 107 | D40: 107 | E40: 107 | F40: 110 | G40: 110 | H40: 110 | I40: SER035
B41: Holiday | C41: 133 | D41: 133 | E41: 133 | F41: 136 | G41: 136 | H41: 136 | I41: SER036
A42: Meter Test Charge
B43: Self-Contained Meter - Company Owned
B44: First test within the previous four years | C44: 0 | F44: 0
B45: Found outside of the accuracy standards | C45: 0 | F45: 0
B46: All other | C46: 111 | D46: 111 | E46: 111 | F46: 112 | G46: 112 | H46: 112 | I46: SER058
B47: CT/Other Meter - Company Owned
B48: First test within the previous four years | C48: 0 | F48: 0
B49: Found outside of the accuracy standards | C49: 0 | F49: 0
B50: All other | C50: 139 | D50: 139 | E50: 139 | F50: 140 | G50: 140 | H50: 140 | I50: SER063
B51: Competitive Meter | C51: 139 | D51: 139 | E51: 139 | F51: 140 | G51: 140 | H51: 140 | I51: SER062
A52: Re-Reads
B53: Meter Reading found to be in error | C53: 0 | F53: 0
B54: Meter Reading found to be accurate | C54: 0 | D54: 17 | G54: 17 | I54: SER010
A55: Meter Reads/Estimates - For the Purpose of a Switch
B56: Out-of-Cycle Meter Read for the Purpose of a Self-Selected Switch | C56: 0 | D56: 16 | F56: 0 | G56: 16 | I56: SER010
B57: Meter Read for the Purpose of a Standard Switch | C57: 0 | D57: 0 | F57: 0 | I57: N/A
B58: Out-of-Cycle Meter Estimation for the Purpose of a Switch (Due to Denial of Access by Retail Customer) | C58: 0 | D58: 18 | G58: 18 | I58: SER010
B59: Out -of-Cycle Estimate for the Purpose of a Mass Transition | C59: 0 | F59: 0 | I59: N/A
A60: Off-Site Meter Reading (OMR) Equipment Installation
B61: During Normal Business Hours | C61: 41 | D61: 41 | E61: 41 | F61: 44 | G61: 44 | H61: 44 | I61: SER073
A62: Automated Meter Reading (AMR) Equipment Installation
B63: Single-Phase Self Contained - During Normal Business Hours | C63: 368 | D63: 368 | E63: 368 | F63: 341 | G63: 341 | H63: 341 | I63: SER076
B64: Three-Phase Self Contained - During Normal Business Hours | C64: 340 | D64: 340 | E64: 340 | F64: 314 | G64: 314 | H64: 314 | I64: SER077
B65: Single-Phase Instrument Rated - During Normal Business Hours | C65: 338 | D65: 338 | E65: 338 | F65: 312 | G65: 312 | H65: 312 | I65: SER078
B66: Three-Phase Instrument Rated - During Normal Business Hours | C66: 368 | D66: 368 | E66: 368 | F66: 342 | G66: 342 | H66: 342 | I66: SER079
A67: Interval Data Recorder (IDR) Equipment Installation
B68: During Normal Business Hours | C68: 469 | D68: 469 | E68: 469 | F68: 471 | G68: 471 | H68: 471 | I68: SER082
A69: Service Call Charge
B70: During Business Days, 8:00 AM - 5:00 PM CPT | C70: 70 | D70: 70 | E70: 70 | F70: 72 | G70: 72 | H70: 72 | I70: SER070
B71: Business Day, Non-Business Hours | C71: 134 | D71: 134 | E71: 134 | F71: 138 | G71: 138 | H71: 138 | I71: SER071
B72: Weekend | C72: 134 | D72: 134 | E72: 134 | F72: 138 | G72: 138 | H72: 138 | I72: SER071
B73: Holiday | C73: 167 | D73: 167 | E73: 167 | F73: 171 | G73: 171 | H73: 171 | I73: SER071
A74: Security Light Repair | D74: As Calculated | F74: 0 | G74: As Calculated | I74: ODL006
A75: Security Light Removal | D75: As Calculated | F75: 0 | G75: As Calculated | I75: ODL006
A76: Street Light Removal | D76: As Calculated | F76: 0 | G76: As Calculated | I76: ODL006
A77: Tampering Charge | C77: As Calculated | D77: As Calculated | E77: As Calculated | F77: As Calculated | G77: As Calculated | H77: As Calculated | I77: SER072
A78: Broken Meter Seal (Only for Self - Connects and Repeat Offenders) | C78: 62 | D78: 62 | E78: 62 | F78: 65 | G78: 65 | H78: 65 | I78: SER130
A79: Inaccessible Meter Charge (Applies only to Critical Load Accounts) | C79: 100 | D79: 100 | E79: 100 | F79: 101 | G79: 101 | H79: 101 | I79: SER133
A81: Non-Construction Services
A82: Dispatched Order Cancellation Fee ( Billed only if canceled or completed unexecutable on the date requested)
A83: Cancelled Order
B84: Routine Order | C84: 13 | D84: 13 | E84: 13 | F84: 13 | G84: 13 | H84: 13 | I84: SER132
B85: Priority Order | C85: 22 | D85: 22 | E85: 22 | F85: 22 | G85: 22 | H85: 22 | I85: SER132
A86: Unexecutable Order
B87: Routine Order | C87: 20 | D87: 20 | E87: 20 | F87: 20 | G87: 20 | H87: 20 | I87: SER132
B88: Priority Order | C88: 31 | D88: 31 | E88: 31 | F88: 32 | G88: 32 | H88: 32 | I88: SER132
A89: Builder's Construction Service Fee - During Normal Business Hours | C89: 43 | D89: 43 | E89: 43 | F89: 44 | G89: 44 | H89: 44 | I89: SER053
A90: Temporary Service Fee - During Normal Business Hours | C90: 207 | D90: 207 | E90: 207 | F90: 212 | G90: 212 | H90: 212 | I90: SER046
A91: Returned Instrument Fee | C91: 43 | D91: 43 | E91: 43 | F91: 43 | G91: 43 | H91: 43 | I91: N/A
A92: Special Products/Services Fee | C92: Estimated Cost | D92: Estimated Cost | E92: Estimated Cost | F92: Estimated Cost | G92: Estimated Cost | H92: Estimated Cost | I92: MSC034
A93: Facilities Monthly Maintenance Service Fee | C93: Installed Cost x .72% | D93: Installed Cost x .72% | E93: Installed Cost x .72% | F93: Installed Cost x .72% | G93: Installed Cost x .72% | H93: Installed Cost x .72% | I93: N/A
A94: Distribution Voltage Facilities Rental Service Fee | C94: Installed Cost x 1.71% | D94: Installed Cost x 1.71% | E94: Installed Cost x 1.71% | F94: Installed Cost x 1.90% | G94: Installed Cost x 1.90% | H94: Installed Cost x 1.90% | I94: N/A
A95: System Integral Facilities Rental Service Fee | C95: Installed Cost x 1.71% | D95: Installed Cost x 1.71% | E95: Installed Cost x 1.71% | F95: Installed Cost x 1.90% | G95: Installed Cost x 1.90% | H95: Installed Cost x 1.90% | I95: N/A
A96: Advanced Metering Equipment Installation and/or Access to Meter Data Fee
B97: Requests for Advanced Metering for a Typical Installation (IDR Meter without Remote Interrogation) - Fixed Price if existing billing meter is a standard meter | C97: 182 | D97: 182 | E97: 182 | F97: 183 | G97: 183 | H97: 183 | I97: SER082
B98: Requests for Advanced Metering for a Typical Installation (IDR Meter without Remote Interrogation) - Fixed Price if new installation with no existing billing meter | C98: 169 | D98: 169 | E98: 169 | F98: 170 | G98: 170 | H98: 170 | I98: SER082
B99: Requests for K-Y-Z Outputs Only for a Typical Installation - Fixed Price if existing billing meter is a standard meter | C99: 299 | D99: 299 | E99: 299 | F99: 301 | G99: 301 | H99: 301 | I99: SER083
B100: Requests for K-Y-Z Outputs Only for a Typical Installation - Fixed Price if existing billing meter is already advanced Metering or for a new installation where no billing meter currently exists | C100: 285 | D100: 285 | E100: 285 | F100: 287 | G100: 287 | H100: 287 | I100: SER083
B101: Requests for both K-Y-Z Outputs and Remote Meter Access for a Typical Installation - Fixed Price if existing billing meter is already advanced metering | C101: 438 | D101: 438 | E101: 438 | F101: 440 | G101: 440 | H101: 440 | I101: SER083
B102: Requests for both K-Y-Z Outputs and Remote Meter Access for a Typical Installation - Fixed Price if new installation with no existing billing meter | C102: 424 | D102: 424 | E102: 424 | F102: 426 | G102: 426 | H102: 426 | I102: SER083
B103: Request for Non-Typical Installations of Solid-State Advanced Metering - Not specifically covered above or covered in any other discretionary fee | C103: Estimated Cost | D103: Estimated Cost | E103: Estimated Cost | F103: Estimated Cost | G103: Estimated Cost | H103: Estimated Cost | I103: SER084
A104: Competitive Meter Removal/Install Fee
B105: Self-Contained Meter | C105: 52 | F105: 52 | I105: SER138
B106: CT Meter | C106: 77 | F106: 77 | I106: SER138
A107: Competitive Meter Physical Access Equipment Installation Fee
B108: Performed during Initial Meter Installation | C108: 42 | F108: 42 | I108: SER138
B109: Performed after Initial Meter Installation | C109: 72 | D109: 72 | E109: 72 | F109: 73 | G109: 73 | H109: 73 | I109: SER138
A110: Competitive Meter Non-Standard Programming Fee
B111: Non-Standard Programming Prior to Installation | C111: 25 | D111: 25 | E111: 25 | F111: 25 | G111: 25 | H111: 25 | I111: SER138
B112: Non-Standard Field Programming on Previously Installed Meter | C112: 58 | D112: 58 | E112: 58 | F112: 58 | G112: 58 | H112: 58 | I112: SER138
A113: Dual Register Meter Installation Fee
A114: Request for Single-Phase Dual Register Meter Installation:
B115: Fixed Price if the Existing Billing Meter is a Standard Meter | C115: 124 | D115: 124 | E115: 124 | F115: 127 | G115: 127 | H115: 127 | I115: SER135
B116: Fixed Price if New Installation with no Existing Meter | C116: 97 | D116: 97 | E116: 97 | F116: 97 | G116: 97 | H116: 97 | I116: SER135
A117: Request for Poly-Phase Dual Register Meter Installation
B118: Fixed Price if the Existing Billing Meter is a Standard Meter | C118: 57 | D118: 57 | E118: 57 | F118: 60 | G118: 60 | H118: 60 | I118: SER135
B119: Fixed Price if New Installation with no Existing Meter | C119: 30 | D119: 30 | E119: 30 | F119: 30 | G119: 30 | H119: 30 | I119: SER135
A120: Meter Communications Diagnostic Fee - During Normal Business Hours | C120: 85 | D120: 85 | E120: 85 | F120: 86 | G120: 86 | H120: 86
A122: Construction Services
A123: Facilities Extension Schedule | C123: As Calculated pursuant to the Schedule | D123: As Calculated pursuant to the Schedule | E123: As Calculated pursuant to the Schedule | F123: As Calculated pursuant to the Schedule | G123: As Calculated pursuant to the Schedule | H123: As Calculated pursuant to the Schedule | I123: N/A
A124: Retail Electric Switchover Fee
B125: Base Charge | C125: 416 | D125: 416 | E125: 416 | F125: 419 | G125: 419 | H125: 419 | I125: N/A
B126: Base Charge Adder | C126: 114 | D126: 114 | E126: 114 | F126: 115 | G126: 115 | H126: 115 | I126: N/A
A127: Facilities Relocation/Modification Fee | C127: Estimated Costs | D127: Estimated Costs | E127: Estimated Costs | F127: Estimated Costs | G127: Estimated Costs | H127: Estimated Costs | I127: N/A
A128: Special Products/Services Fee | C128: Estimated Costs | D128: Estimated Costs | E128: Estimated Costs | F128: Estimated Costs | G128: Estimated Costs | H128: Estimated Costs | I128: N/A
A129: Emergency Maintenance Service Fee | C129: Estimated Costs | D129: Estimated Costs | E129: Estimated Costs | F129: Estimated Costs | G129: Estimated Costs | H129: Estimated Costs | I129: N/A
A130: Customized Maintenance Service Fee | C130: Estimated Costs | D130: Estimated Costs | E130: Estimated Costs | F130: Estimated Costs | G130: Estimated Costs | H130: Estimated Costs | I130: N/A

Sheet SharyResidential
A1: AEP Texas - Sharyland Area
A2: =IF(A3="All Rate Codes","Billing Determinants for","Billing Determinants for Rate Code") -> Billing Determinants for
A3: All Rate Codes
A4: =IF(A3="All Rate Codes","",VLOOKUP(A3,'SharyRate code Table'!A8:C202,3,FALSE)) -> 
A5: RESIDENTIAL SERVICE
C6: 810_02 | H6: Estimated
C7: SAC04 | D7: Approved Rate | F7: Docket | G7: Effective | H7: Revision or | I7: Applicable Rate Codes
A8: . | C8: Code | D8: Cost / Unit | F8: Number | G8: Date | H8: Termination Date | I8: 822
A9: BASE CHARGES | I9: x | J9: x | K9: x | L9: x | M9: x
A10: Customer Charge | C10: BAS001 | D10: 3.19 | E10: per month | F10: 35093 | G10: 2008-01-30 | H10: Not Scheduled | I10: x
A11: Metering Charge | C11: BAS003 | D11: 3.55 | E11: per month | F11: 35093 | G11: 2008-01-30 | H11: Not Scheduled | I11: x
A12: Transmission System Charge | C12: TRN001 | D12: 0.00519 | E12: per kWh | F12: 35093 | G12: 2008-01-30 | H12: Not Scheduled | I12: x
A13: Distribution System Charge | C13: DIS001 | D13: 0.013915 | E13: per kWh | F13: 35093 | G13: 2008-01-30 | H13: Not Scheduled | I13: x
A15: RIDER CHARGES | I15: x | J15: x | K15: x | L15: x | M15: x
A16: SBF (System Benefit Fund) | C16: MSC024 | D16: 0.000000 | E16: per kWh | F16: 46050 | G16: 2017-01-01 | H16: Revise 1/01/2017 | I16: x
A17: EECRF (Energy Efficiency Cost Recovery Factor) | C17: MSC041 | D17: 0.000554 | E17: per kWh | F17: 48422 | G17: 2019-03-01 | H17: Revise 3/01/2020 | I17: x
A18: NDC (Nuclear Decommissioning Collections) | C18: MSC025 | D18: 2.8e-05 | E18: per kWh | F18: 49163 | G18: 2019-05-30 | H18: Not Scheduled
A19: AMSCRF (Advanced Metering System Cost Recovery Fee) | C19: MSC039 | D19: 2.26 | E19: per month | F19: 36928 | G19: 2014-01-29 | H19: Revise 12/29/2020 | I19: x
A20: TCRF (Transmission Cost Recovery Factor) | C20: TRN002 | D20: 0.010027 | E20: per kWh | F20: 49580 | G20: 2019-09-01 | H20: Revise 9/01/2020 | I20: x
A21: TC-3 (Transition Charge - 3) | C21: MSC037 | D21: 0.002897 | E21: per kWh | F21: 49219 | G21: 2019-02-28 | H21: Revised 2/28/2020
A22: TC-2 (Transition Charge - 2) | C22: MSC036 | D22: 0.008816 | E22: per kWh | F22: 49553 | G22: 2019-08-28 | H22: Revise 8/28/2020
A23: DCRF-Distribution Cost Recovery Factor | C23: MSC042 | D23: 0.002158 | E23: per KWh | F23: 48222 | G23: 2018-09-01 | H23: Not Scheduled | I23: x
A24: SRC - System Restoration Charge Factor | C24: MSC038 | D24: 0.001455 | E24: per KWh | F24: 49308 | G24: 2019-09-18 | H24: Revise 9/18/2020
A25: ADIFIT- Accumulated Deferred Federal Income Tax Credit | C25: CRE031 | D25: -0.000166 | E25: per KWh | F25: 49308 | G25: 2019-09-18 | H25: Revise 9/18/2020
A26: MSC - Merger Savings Credit | C26: RRR008 | D26: -0.000929 | E26: per KWh | F26: 49028 | G26: 2019-08-28 | H26: Cr.Sept. 2019 Only | I26: x
I68: x | J68: x | K68: x | L68: x | M68: x

Sheet SharySec<10KW
A1: AEP Texas - Sharyland Area
A2: =IF(A3="All Rate Codes","Billing Determinants for","Billing Determinants for Rate Code") -> Billing Determinants for
A3: All Rate Codes
A4: =IF(A3="All Rate Codes","",VLOOKUP(A3,'SharyRate code Table'!A8:C202,3,FALSE)) -> 
A5: SECONDARY VOLTAGE SERVICE LESS THAN OR EQUAL TO 10 KW
C6: 810_02 | H6: Estimated
C7: SAC04 | D7: Approved Rate | F7: Docket | G7: Effective | H7: Revision or | I7: Applicable Rate Codes
A8: Description of Charge or Rider | C8: Code | D8: Cost / Unit | F8: Number | G8: Date | H8: Termination Date | I8: 825
A9: BASE CHARGES | I9: x | J9: x | K9: x | L9: x | M9: x | N9: x | O9: x | P9: X | Q9: X
A10: Customer Charge | C10: BAS001 | D10: 3.2 | E10: per month | F10: 35093 | G10: 2008-01-30 | H10: Not Scheduled | I10: x
A11: Metering Charge | C11: BAS003 | D11: 3.68 | E11: per month | F11: 35093 | G11: 2008-01-30 | H11: Not Scheduled | I11: x
A12: Transmission System Charge | C12: TRN001 | D12: 0.002512 | E12: per kWh | F12: 35093 | G12: 2008-01-30 | H12: Not Scheduled | I12: x
A13: Distribution System Charge | C13: DIS001 | D13: 0.015489 | E13: per kWh | F13: 35093 | G13: 2008-01-30 | H13: Not Scheduled | I13: x
A15: RIDER CHARGES | I15: x | J15: x | K15: x | L15: x | M15: x | N15: x | O15: x | P15: X | Q15: X
A16: SBF (System Benefit Fund) | C16: MSC024 | D16: 0.000000 | E16: per kWh | F16: 46050 | G16: 2017-01-01 | H16: Revise 1/01/2017 | I16: x
A17: EECRF (Energy Efficiency Cost Recovery Factor) | C17: MSC041 | D17: 0.000119 | E17: per kWh | F17: 48422 | G17: 2019-03-01 | H17: Revise 3/01/2020 | I17: x
A18: NDC (Nuclear Decommissioning Collections) | C18: MSC025 | D18: 3.5e-05 | E18: per kWh | F18: 49163 | G18: 2019-05-30 | H18: Not Scheduled
A19: TCRF (Transmission Cost Recovery Factor) | C19: TRN002 | D19: 0.004774 | E19: per kWh | F19: 49580 | G19: 2019-09-01 | H19: Revise 9/01/2020 | I19: x
A20: AMSCRF | B20: (Advanced Metering System Cost Recovery Factor) | C20: MSC039 | D20: 4.17 | E20: per month | F20: 36928 | G20: 2014-01-29 | H20: Revise 12/29/2020 | I20: x
A21: TC-3 (Transition Charge - 3) | J21: x | K21: x | L21: x | M21: x | N21: x | O21: x
B22: Commercial & Small Industrial - Energy | C22: MSC037 | D22: 0.008087 | E22: per kWh | F22: 49219 | G22: 2019-02-28 | H22: Revise 2/28/2020
B23: Commercial & Small Industrial - Demand | C23: MSC037 | D23: 0.764521 | E23: per kW | F23: 49219 | G23: 2019-02-28 | H23: Revise 2/28/2020
B24: Municipal Water Pumping and Cotton Gin | C24: MSC037 | D24: 0.004556 | E24: per kWh | F24: 49219 | G24: 2019-02-28 | H24: Revise 2/28/2020 | P24: X | Q24: X
A25: TC-2 (Transition Charge - 2) | J25: x | K25: x | L25: x | M25: x | N25: x | O25: x
B26: Commercial & Small Industrial - Energy | C26: MSC036 | D26: 0.019294 | E26: per kWh | F26: 49553 | G26: 2019-08-28 | H26: Revise 8/28/2020
B27: Commercial & Small Industrial - Demand | C27: MSC036 | D27: 2.378529 | E27: per kW | F27: 48394 | G27: 2018-08-28 | H27: Revise 8/28/2019
B28: Municipal Water Pumping and Cotton Gin | C28: MSC036 | D28: 0.013931 | E28: per kWh | F28: 49553 | G28: 2019-08-28 | H28: Revise 8/28/2020 | P28: X | Q28: X
A29: DCRF-Distribution Cost Recovery Factor | I29: x | J29: x | K29: x | L29: x | M29: x | N29: x | O29: x
B30: Commercial & Small Industrial- Energy | C30: MSC042 | D30: 0.005796 | E30: per kWh | F30: 48222 | G30: 2018-09-01 | H30: Not Scheduled | I30: x
B31: Commercial & Small Industrial- Non IDR Kw | C31: MSC042 | D31: 0.005796 | E31: per KW | F31: 48222 | G31: 2018-09-01 | H31: Revise 9-01-2019
B32: Secondary Service Less Than or Equal to 10 Kw | C32: MSC042 | D32: 0.005796 | E32: per kWh | F32: 48222 | G32: 2018-09-01 | H32: Revise 9-01/2019
A33: SRC - System Restoration Charge Factor | C33: MSC038 | D33: 0.001798 | E33: per kWh | F33: 49308 | G33: 2019-09-18 | H33: Revise 9/18/2020
A34: ADIFIT- Accumulated Deferred Federal Income Tax Credit | C34: CRE031 | D34: -0.000205 | E34: per kWh | F34: 49308 | G34: 2019-09-18 | H34: Revise 9/18/2020
A35: MSC - Merger Savings Credit | C35: RRR008 | D35: -0.001281 | E35: per kWh | F35: 49028 | G35: 2019-08-28 | H35: Cr. Sept.2019 Only | I35: x
I67: x | J67: x | K67: x | L67: x | M67: x | N67: x | O67: x

Sheet SharySec>=10KW
A1: AEP Texas - Sharyland Area
A2: =IF(A3="All Rate Codes","Billing Determinants for","Billing Determinants for Rate Code") -> Billing Determinants for
A3: All Rate Codes
A4: =IF(A3="All Rate Codes","",VLOOKUP(A3,'SharyRate code Table'!A8:C202,3,FALSE)) -> 
A5: SECONDARY VOLTAGE SERVICE GREATER THAN 10 KW
C6: 810_02 | H6: Estimated Next
C7: SAC04 | D7: Approved Rate | F7: Docket | G7: Effective | H7: Revision or | I7: Applicable Rate Codes
A8: Description of Charge or Rider | C8: Code | D8: Cost / Unit | F8: Number | G8: Date | H8: Termination Date | I8: 881 | J8: 882
A9: BASE CHARGES | I9: x | J9: x | K9: x | L9: x | M9: x | N9: x | O9: x | P9: x | Q9: x | R9: x | S9: x | T9: x | U9: x | V9: x
A10: Customer Charge (non-IDR Metered) | C10: BAS001 | D10: 3.26 | E10: per month | F10: 34561 | G10: 2008-03-31 | H10: Not Scheduled | I10: x
A11: Customer Charge (IDR Metered) | C11: BAS001 | D11: 26.52 | E11: per month | F11: 34561 | G11: 2008-03-31 | H11: Not Scheduled | J11: x
A12: Metering Charge | C12: BAS003 | D12: 15.81 | E12: per month | F12: 34561 | G12: 2008-03-31 | H12: Not Scheduled | I12: x | J12: x
A13: Transmission System Charge (non-IDR Metered) | C13: TRN001 | D13: 1.286 | E13: per NCP kW | F13: 34561 | G13: 2008-03-31 | H13: Not Scheduled | I13: x
A14: Transmission System Charge (IDR Metered) | C14: TRN001 | D14: 1.793 | E14: per 4CP kW | F14: 34561 | G14: 2008-03-31 | H14: Not Scheduled | J14: x
A15: Distribution System Charge | C15: DIS001 | D15: 3.314 | E15: per NCP kW | F15: 34561 | G15: 2008-03-31 | H15: Not Scheduled | I15: x | J15: x
A17: RIDER CHARGES | I17: x | J17: x | K17: x | L17: x | M17: x | N17: x | O17: x | P17: x | Q17: x | R17: x | S17: x | T17: x | U17: x | V17: x
A18: SBF (System Benefit Fund) | C18: MSC024 | D18: 0.000000 | E18: per kWh | F18: 46050 | G18: 2017-01-01 | H18: Revise 1/01/2017 | I18: x | J18: x
A19: EECRF (Energy Efficiency Cost Recovery Factor) | C19: MSC041 | D19: 0.000372 | E19: per kWh | F19: 48422 | G19: 2019-03-01 | H19: Revise 3/01/2020 | I19: x | J19: x
A20: NDC (Nuclear Decommissioning Collections) | C20: MSC025 | D20: 0.007879 | E20: per kW | F20: 49163 | G20: 2019-05-30 | H20: Not Scheduled
A21: AMSCRF | B21: (Advanced Metering System Cost Recovery Fee) | C21: MSC039 | D21: 2.05 | E21: per month | F21: 36928 | G21: 2014-01-29 | H21: Revise 12/29/2020 | I21: x
A22: TCRF (Transmission Cost Recovery Factor) | I22: x | J22: x | K22: x | L22: x | M22: x | N22: x | O22: x | P22: x | Q22: x | R22: x | S22: x | T22: x | U22: x | V22: x
B23: TCRF - IDR Metered | C23: TRN002 | D23: 2.484864 | E23: per average 4CP kW | F23: 49580 | G23: 2019-09-01 | H23: Revise 9/01/2020 | J23: x
B24: TCRF - Non-IDR Metered | C24: TRN002 | D24: 2.14806 | E24: per NCP kW | F24: 49580 | G24: 2019-09-01 | H24: Revise 9/01/2020 | I24: x
A25: TC-3 (Transition Charge-3)
B26: Commercial & Small Industrial - Energy | C26: MSC037 | D26: 0.008087 | E26: per kWh | F26: 49219 | G26: 2019-02-28 | H26: Revise 2/28/2020
B27: Commercial & Small Industrial - Demand | C27: MSC037 | D27: 0.764521 | E27: per kW | F27: 49219 | G27: 2019-02-28 | H27: Revise 2/28/2020
B28: Municipal Water Pumping and Cotton Gin | C28: MSC037 | D28: 0.004556 | E28: per kWh | F28: 49219 | G28: 2019-02-28 | H28: Revise 2/28/2019
B29: Standby Firm | C29: MSC037 | D29: 0.069687 | E29: per daily kW | F29: 49219 | G29: 2019-02-28 | H29: Revise 2/28/2020
A30: TC-2 (Transition Charge-2) | K30: x | L30: x | M30: x | N30: x | O30: x | P30: x | Q30: x | R30: x | S30: x | T30: x | U30: x | V30: x
B31: Commercial & Small Industrial - Energy | C31: MSC036 | D31: 0.019294 | E31: per kWh | F31: 49553 | G31: 2019-08-28 | H31: Revise 8/28/2020
B32: Commercial & Small Industrial - Demand | C32: MSC036 | D32: 2.280098 | E32: per kW | F32: 49553 | G32: 2019-08-28 | H32: Revise 8/28/2020
B33: Municipal Water Pumping and Cotton Gin | C33: MSC036 | D33: 0.013931 | E33: per kWh | F33: 49553 | G33: 2019-08-28 | H33: Revise 8/28/2020
B34: Standby Firm | C34: MSC036 | D34: 0.21875 | E34: per daily kW | F34: 49553 | G34: 2019-08-28 | H34: Revise 8/28/2020
A35: DCRF-Distribution Cost Recovery Factor | I35: x | J35: x | K35: x | L35: x | M35: x | N35: x | O35: x | P35: x | Q35: x | R35: x | S35: x | T35: x | U35: x | V35: x
B36: Commercial Energy with IDR | C36: MSC042 | D36: 0.45944 | E36: per KW | F36: 48222 | G36: 2018-09-01 | H36: Not Scheduled
B37: Commercial Demand with IDR | C37: MSC042 | D37: 0.45944 | E37: per kW | F37: 48222 | G37: 2018-09-01 | H37: Not Scheduled | I37: x | J37: x
B38: Municipal Water Pumping with IDR | C38: MSC042 | D38: 0.45944 | E38: per kW | F38: 48222 | G38: 2018-09-01 | H38: Not Scheduled
B39: Commercial Demand TC/CTC (Machine billed-4CP | C39: MSC042 | D39: 0.45944 | E39: per average 4CP kW | F39: 48222 | G39: 2018-09-01 | H39: Not Scheduled
A40: SRC - System Restoration Charge Factor | C40: MSC038 | D40: 0.297415 | E40: per kW | F40: 49308 | G40: 2019-09-18 | H40: Revised 9/18/2020
A41: ADIFIT- Accumulated Deferred Federal Income Tax Credit | C41: CRE031 | D41: -0.033988 | E41: per kW | F41: 49308 | G41: 2019-09-18 | H41: Revised 9/18/2020
A42: MSC - Merger Savings Credit | I42: x | J42: x | K42: x | L42: x | M42: x | N42: x | O42: x | P42: x | Q42: x | R42: x | S42: x | T42: x | U42: x | V42: x
B43: MSC - IDR Metered | C43: RRR008 | D43: 0.196114 | E43: per kW | F43: 2034-03-25 | G43: 2019-08-28 | H43: Cr. Sept. 2019 Only | J43: x
B44: MSC - Non IDR Metered | C44: RRR008 | D44: 0.227232 | E44: per kW | F44: 49028 | G44: 2019-08-28 | H44: Cr. Sept. 2019 Only | I44: x
I68: x | J68: x | K68: x | L68: x | M68: x | N68: x | O68: x | P68: x | Q68: x | R68: x | S68: x | T68: x | U68: x | V68: x

Sheet Shary StreetLgt
A1: AEP Texas - Sharyland Area
A2: =IF(A3="All Rate Codes","Billing Determinants for","Billing Determinants for Rate Code") -> Billing Determinants for
A3: All Rate Codes
A4: =IF(A3="All Rate Codes","",VLOOKUP(A3,'SharyRate code Table'!A8:C202,3,FALSE)) -> 
A5: MUNICIPAL STREET LIGHTING SERVICE
C6: 810_02 | H6: Estimated | I6: Monthly Facilities Rate
C7: SAC04 | D7: Approved Rate | F7: Docket | G7: Effective | H7: Revision or | I7: Rate | K7: kWh | L7: Facility
A8: Description of Charge or Rider | C8: Code | D8: Cost / Unit | F8: Number | G8: Date | H8: Termination Date | I8: Code | J8: Description | K8: Usage | L8: Price
A9: BASE CHARGES | J9: Metal Halide (MH)
A10: Customer Charge | C10: BAS001 | D10: 3.2 | E10: per month | F10: 35093 | G10: 2008-01-30 | H10: Not Scheduled | I10: 993 | J10: MH 175 Watt | K10: 75 | L10: 6.7
A11: Monthly Facilities Charge | I11: 994 | J11: MH 400 Watt | K11: 155 | L11: 7.27
B12: =IF(A$3="All Rate Codes","(varies by light type - See table to right)",VLOOKUP(A$3,I$9:L$68,2,FALSE)) -> (varies by light type - See table to right) | C12: ODL003 | D12: =IF(A$3="All Rate Codes","See Table",VLOOKUP(A$3,I$9:L$68,4,FALSE)) -> See Table | E12: per month per light | F12: 35093 | G12: 2008-01-30 | H12: Not Scheduled | J12: High Pressure Sodium (HPS)
B13: kWh usage per light | D13: =IF(A$3="All Rate Codes"," See Table",VLOOKUP(A$3,I$9:L$68,3,FALSE)) -> See Table | E13: kWh per month per light | I13: 990 | J13: HPS 150 Watt | K13: 70 | L13: 4.33
A14: Transmission System Charge | C14: TRN001 | D14: 0.002512 | E14: per kWh | F14: 35093 | G14: 2008-01-30 | H14: Not Scheduled | I14: 991 | J14: HPS 250 Watt | K14: 105 | L14: 6.06
A15: Distribution System Charge | C15: DIS001 | D15: 0.015489 | E15: per kWh | F15: 35093 | G15: 2008-01-30 | H15: Not Scheduled | I15: 992 | J15: HPS 400 Watt | K15: 165 | L15: 6.57
A17: RIDER CHARGES
A18: SBF (System Benefit Fund) | C18: MSC024 | D18: 0.000000 | E18: per kWh | F18: 35093 | G18: 2013-09-01 | H18: Revise 9/1/13
A19: TCRF (Transmission Cost Recovery Factor) | C19: TRN002 | D19: 0.004774 | E19: per kWh | F19: 49580 | G19: 2019-09-01 | H19: Revise 9/01/2020
A20: DCRF-Distribution Cost Recovery Factor
B21: Municipal Street Lighting Service | C21: MSC042 | D21: 0.005796 | E21: per kWh | F21: 32475 | G21: 2018-09-01 | H21: Not Scheduled
A22: MSC - Merger Savings Credit | C22: RRR008 | D22: -0.003005 | E22: per kWh | F22: 49028 | G22: 2019-08-28 | H22: Cr. Sept. 2019 Only

Sheet TCCResidential
A1: AEP Texas - Central Area
A2: =IF(A3="All Rate Codes","Billing Determinants for","Billing Determinants for Rate Code") -> Billing Determinants for
A3: All Rate Codes
A4: =IF(A3="All Rate Codes","",VLOOKUP(A3,'TCCRate code Table'!A8:C202,3,FALSE)) -> 
A5: RESIDENTIAL SERVICE
C6: 810_02 | H6: Estimated
C7: SAC04 | D7: Approved Rate | F7: Docket | G7: Effective | H7: Revision or | I7: Applicable Rate Codes
A8: . | C8: Code | D8: Cost / Unit | F8: Number | G8: Date | H8: Termination Date | I8: 820
A9: BASE CHARGES | I9: x | J9: x | K9: x | L9: x | M9: x
A10: Customer Charge | C10: BAS001 | D10: 3.19 | E10: per month | F10: 35093 | G10: 2008-01-30 | H10: Not Scheduled | I10: x
A11: Metering Charge | C11: BAS003 | D11: 3.55 | E11: per month | F11: 35093 | G11: 2008-01-30 | H11: Not Scheduled | I11: x
A12: Transmission System Charge | C12: TRN001 | D12: 0.00519 | E12: per kWh | F12: 35093 | G12: 2008-01-30 | H12: Not Scheduled | I12: x
A13: Distribution System Charge | C13: DIS001 | D13: 0.013915 | E13: per kWh | F13: 35093 | G13: 2008-01-30 | H13: Not Scheduled | I13: x
A15: RIDER CHARGES | I15: x | J15: x | K15: x | L15: x | M15: x
A16: SBF (System Benefit Fund) | C16: MSC024 | D16: 0.000000 | E16: per kWh | F16: 46050 | G16: 2017-01-01 | H16: Revise 1/01/2017 | I16: x
A17: EECRF (Energy Efficiency Cost Recovery Factor) | C17: MSC041 | D17: 0.000554 | E17: per kWh | F17: 48422 | G17: 2019-03-01 | H17: Revise 3/01/2020 | I17: x
A18: NDC (Nuclear Decommissioning Collections) | C18: MSC025 | D18: 2.8e-05 | E18: per kWh | F18: 49163 | G18: 2019-05-30 | H18: Not Scheduled | I18: x
A19: AMSCRF (Advanced Metering System Cost Recovery Fee) | C19: MSC039 | D19: 2.26 | E19: per month | F19: 36928 | G19: 2014-01-29 | H19: Revise 12/29/2020 | I19: x
A20: TCRF (Transmission Cost Recovery Factor) | C20: TRN002 | D20: 0.010027 | E20: per kWh | F20: 49580 | G20: 2019-09-01 | H20: Revise 9/01/2020 | I20: x
A21: TC-3 (Transition Charge - 3) | C21: MSC037 | D21: 0.002897 | E21: per kWh | F21: 49219 | G21: 2019-02-28 | H21: Revised 2/28/2020 | I21: x
A22: TC-2 (Transition Charge - 2) | C22: MSC036 | D22: 0.008816 | E22: per kWh | F22: 49553 | G22: 2019-08-28 | H22: Revise 8/28/2020 | I22: x
A23: DCRF-Distribution Cost Recovery Factor | C23: MSC042 | D23: 0.002158 | E23: per KWh | F23: 48222 | G23: 2018-09-01 | H23: Not Scheduled | I23: x
A24: SRC - System Restoration Charge Factor | C24: MSC038 | D24: 0.001455 | E24: per KWh | F24: 49308 | G24: 2019-09-18 | H24: Revise 9/18/2020 | I24: x
A25: ADIFIT- Accumulated Deferred Federal Income Tax Credit | C25: CRE031 | D25: -0.000166 | E25: per KWh | F25: 49308 | G25: 2019-09-18 | H25: Revise 9/18/2020 | I25: x
A26: MSC - Merger Savings Credit | C26: RRR008 | D26: -0.000929 | E26: per KWh | F26: 49028 | G26: 2019-08-28 | H26: Cr.Sept. 2019 Only | I26: x
I68: x | J68: x | K68: x | L68: x | M68: x

Sheet TCCSec<10KW
A1: AEP Texas - Central Area
A2: =IF(A3="All Rate Codes","Billing Determinants for","Billing Determinants for Rate Code") -> Billing Determinants for
A3: All Rate Codes
A4: =IF(A3="All Rate Codes","",VLOOKUP(A3,'TCCRate code Table'!A8:C202,3,FALSE)) -> 
A5: SECONDARY VOLTAGE SERVICE LESS THAN OR EQUAL TO 10 KW
C6: 810_02 | H6: Estimated
C7: SAC04 | D7: Approved Rate | F7: Docket | G7: Effective | H7: Revision or | I7: Applicable Rate Codes
A8: Description of Charge or Rider | C8: Code | D8: Cost / Unit | F8: Number | G8: Date | H8: Termination Date | I8: 826 | J8: 827 | K8: 828 | L8: 829 | M8: 850 | N8: 851 | O8: 852
A9: BASE CHARGES | I9: x | J9: x | K9: x | L9: x | M9: x | N9: x | O9: x | P9: X | Q9: X
A10: Customer Charge | C10: BAS001 | D10: 3.2 | E10: per month | F10: 35093 | G10: 2008-01-30 | H10: Not Scheduled | I10: x | J10: x | K10: x | L10: x | M10: x | N10: x | O10: x
A11: Metering Charge | C11: BAS003 | D11: 3.68 | E11: per month | F11: 35093 | G11: 2008-01-30 | H11: Not Scheduled | I11: x | J11: x | K11: x | L11: x
A12: Transmission System Charge | C12: TRN001 | D12: 0.002512 | E12: per kWh | F12: 35093 | G12: 2008-01-30 | H12: Not Scheduled | I12: x | J12: x | K12: x | L12: x | M12: x | N12: x | O12: x
A13: Distribution System Charge | C13: DIS001 | D13: 0.015489 | E13: per kWh | F13: 35093 | G13: 2008-01-30 | H13: Not Scheduled | I13: x | J13: x | K13: x | L13: x | M13: x | N13: x | O13: x
A15: RIDER CHARGES | I15: x | J15: x | K15: x | L15: x | M15: x | N15: x | O15: x | P15: X | Q15: X
A16: SBF (System Benefit Fund) | C16: MSC024 | D16: 0.000000 | E16: per kWh | F16: 46050 | G16: 2017-01-01 | H16: Revise 1/01/2017 | I16: x | J16: x | K16: x | L16: x | M16: x | N16: x | O16: x
A17: EECRF (Energy Efficiency Cost Recovery Factor) | C17: MSC041 | D17: 0.000119 | E17: per kWh | F17: 48422 | G17: 2019-03-01 | H17: Revise 3/01/2020 | I17: x | J17: x | K17: x | L17: x | M17: x | N17: x | O17: x
A18: NDC (Nuclear Decommissioning Collections) | C18: MSC025 | D18: 3.5e-05 | E18: per kWh | F18: 49163 | G18: 2019-05-30 | H18: Not Scheduled | I18: x | J18: x | K18: x | L18: x | M18: x | N18: x | O18: x
A19: TCRF (Transmission Cost Recovery Factor) | C19: TRN002 | D19: 0.004774 | E19: per kWh | F19: 49580 | G19: 2019-09-01 | H19: Revise 9/01/2020 | I19: x | J19: x | K19: x | L19: x | M19: x | N19: x | O19: x
A20: AMSCRF | B20: (Advanced Metering System Cost Recovery Factor) | C20: MSC039 | D20: 4.17 | E20: per month | F20: 36928 | G20: 2014-01-29 | H20: Revise 12/29/2020 | I20: x | J20: x | K20: x | L20: x | M20: x | N20: x | O20: x
A21: TC-3 (Transition Charge - 3) | I21: x | J21: x | K21: x | L21: x | M21: x | N21: x | O21: x
B22: Commercial & Small Industrial - Energy | C22: MSC037 | D22: 0.008087 | E22: per kWh | F22: 49219 | G22: 2019-02-28 | H22: Revise 2/28/2020 | I22: x | L22: x | M22: x | O22: x
B23: Commercial & Small Industrial - Demand | C23: MSC037 | D23: 0.764521 | E23: per kW | F23: 49219 | G23: 2019-02-28 | H23: Revise 2/28/2020 | J23: x
B24: Municipal Water Pumping and Cotton Gin | C24: MSC037 | D24: 0.004556 | E24: per kWh | F24: 49219 | G24: 2019-02-28 | H24: Revise 2/28/2020 | K24: x | N24: x | P24: X | Q24: X
A25: TC-2 (Transition Charge - 2) | I25: x | J25: x | K25: x | L25: x | M25: x | N25: x | O25: x
B26: Commercial & Small Industrial - Energy | C26: MSC036 | D26: 0.019294 | E26: per kWh | F26: 49553 | G26: 2019-08-28 | H26: Revise 8/28/2020 | I26: x | L26: x | M26: x | O26: x
B27: Commercial & Small Industrial - Demand | C27: MSC036 | D27: 2.378529 | E27: per kW | F27: 48394 | G27: 2018-08-28 | H27: Revise 8/28/2019 | J27: x
B28: Municipal Water Pumping and Cotton Gin | C28: MSC036 | D28: 0.013931 | E28: per kWh | F28: 49553 | G28: 2019-08-28 | H28: Revise 8/28/2020 | K28: x | N28: x | P28: X | Q28: X
A29: DCRF-Distribution Cost Recovery Factor | I29: x | J29: x | K29: x | L29: x | M29: x | N29: x | O29: x
B30: Commercial & Small Industrial- Energy | C30: MSC042 | D30: 0.005796 | E30: per kWh | F30: 48222 | G30: 2018-09-01 | H30: Not Scheduled | I30: x | L30: x | M30: x | O30: x
B31: Commercial & Small Industrial- Non IDR Kw | C31: MSC042 | D31: 0.005796 | E31: per KW | F31: 48222 | G31: 2018-09-01 | H31: Revise 9-01-2019 | J31: x
B32: Secondary Service Less Than or Equal to 10 Kw | C32: MSC042 | D32: 0.005796 | E32: per kWh | F32: 48222 | G32: 2018-09-01 | H32: Revise 9-01/2019 | K32: x | N32: x
A33: SRC - System Restoration Charge Factor | C33: MSC038 | D33: 0.001798 | E33: per kWh | F33: 49308 | G33: 2019-09-18 | H33: Revise 9/18/2020 | I33: x | J33: x | K33: x | L33: x | M33: x | N33: x | O33: x
A34: ADIFIT- Accumulated Deferred Federal Income Tax Credit | C34: CRE031 | D34: -0.000205 | E34: per kWh | F34: 49308 | G34: 2019-09-18 | H34: Revise 9/18/2020 | I34: x | J34: x | K34: x | L34: x | M34: x | N34: x | O34: x
A35: MSC - Merger Savings Credit | C35: RRR008 | D35: -0.001281 | E35: per kWh | F35: 49028 | G35: 2019-08-28 | H35: Cr. Sept.2019 Only | I35: x | J35: x | K35: x | L35: x | M35: x | N35: x | O35: x
I67: x | J67: x | K67: x | L67: x | M67: x | N67: x | O67: x

Sheet TCCSec>=10KW
A1: AEP Texas - Central Area
A2: =IF(A3="All Rate Codes","Billing Determinants for","Billing Determinants for Rate Code") -> Billing Determinants for
A3: All Rate Codes
A4: =IF(A3="All Rate Codes","",VLOOKUP(A3,'TCCRate code Table'!A8:C202,3,FALSE)) -> 
A5: SECONDARY VOLTAGE SERVICE GREATER THAN 10 KW
C6: 810_02 | H6: Estimated Next
C7: SAC04 | D7: Approved Rate | F7: Docket | G7: Effective | H7: Revision or | I7: Applicable Rate Codes
A8: Description of Charge or Rider | C8: Code | D8: Cost / Unit | F8: Number | G8: Date | H8: Termination Date | I8: 830 | J8: 831 | K8: 833 | L8: 834 | M8: 835 | N8: 836 | O8: 837 | P8: 838 | Q8: 839 | R8: 853 | S8: 855 | T8: 856 | U8: 857 | V8: 858
A9: BASE CHARGES | I9: x | J9: x | K9: x | L9: x | M9: x | N9: x | O9: x | P9: x | Q9: x | R9: x | S9: x | T9: x | U9: x | V9: x
A10: Customer Charge (non-IDR Metered) | C10: BAS001 | D10: 3.26 | E10: per month | F10: 34561 | G10: 2008-03-31 | H10: Not Scheduled | I10: x | J10: x | K10: x | N10: x | P10: x | S10: x | U10: x
A11: Customer Charge (IDR Metered) | C11: BAS001 | D11: 26.52 | E11: per month | F11: 34561 | G11: 2008-03-31 | H11: Not Scheduled | L11: x | M11: x | O11: x | Q11: x | R11: x | T11: x | V11: x
A12: Metering Charge | C12: BAS003 | D12: 15.81 | E12: per month | F12: 34561 | G12: 2008-03-31 | H12: Not Scheduled | I12: x | J12: x | K12: x | L12: x | M12: x | N12: x | O12: x | P12: x | Q12: x | R12: x | S12: x | T12: x | U12: x | V12: x
A13: Transmission System Charge (non-IDR Metered) | C13: TRN001 | D13: 1.286 | E13: per NCP kW | F13: 34561 | G13: 2008-03-31 | H13: Not Scheduled | I13: x | J13: x | K13: x | N13: x | P13: x | S13: x | U13: x
A14: Transmission System Charge (IDR Metered) | C14: TRN001 | D14: 1.793 | E14: per 4CP kW | F14: 34561 | G14: 2008-03-31 | H14: Not Scheduled | L14: x | M14: x | O14: x | Q14: x | R14: x | T14: x | V14: x
A15: Distribution System Charge | C15: DIS001 | D15: 3.314 | E15: per NCP kW | F15: 34561 | G15: 2008-03-31 | H15: Not Scheduled | I15: x | J15: x | K15: x | L15: x | M15: x | N15: x | O15: x | P15: x | Q15: x | R15: x | S15: x | T15: x | U15: x | V15: x
A17: RIDER CHARGES | I17: x | J17: x | K17: x | L17: x | M17: x | N17: x | O17: x | P17: x | Q17: x | R17: x | S17: x | T17: x | U17: x | V17: x
A18: SBF (System Benefit Fund) | C18: MSC024 | D18: 0.000000 | E18: per kWh | F18: 46050 | G18: 2017-01-01 | H18: Revise 1/01/2017 | I18: x | J18: x | K18: x | L18: x | M18: x | N18: x | O18: x | P18: x | Q18: x | R18: x | S18: x | T18: x | U18: x | V18: x
A19: EECRF (Energy Efficiency Cost Recovery Factor) | C19: MSC041 | D19: 0.000372 | E19: per kWh | F19: 48422 | G19: 2019-03-01 | H19: Revise 3/01/2020 | I19: x | J19: x | K19: x | L19: x | M19: x | N19: x | O19: x | P19: x | Q19: x | R19: x | S19: x | T19: x | U19: x | V19: x
A20: NDC (Nuclear Decommissioning Collections) | C20: MSC025 | D20: 0.007879 | E20: per kW | F20: 49163 | G20: 2019-05-30 | H20: Not Scheduled | I20: x | J20: x | K20: x | L20: x | M20: x | N20: x | O20: x | P20: x | Q20: x | R20: x | S20: x | T20: x | U20: x | V20: x
A21: AMSCRF | B21: (Advanced Metering System Cost Recovery Fee) | C21: MSC039 | D21: 2.05 | E21: per month | F21: 36928 | G21: 2014-01-29 | H21: Revise 12/29/2020 | I21: x | J21: x | K21: x | N21: x | P21: x | S21: x | U21: x
A22: TCRF (Transmission Cost Recovery Factor) | I22: x | J22: x | K22: x | L22: x | M22: x | N22: x | O22: x | P22: x | Q22: x | R22: x | S22: x | T22: x | U22: x | V22: x
B23: TCRF - IDR Metered | C23: TRN002 | D23: 2.484864 | E23: per average 4CP kW | F23: 49580 | G23: 2019-09-01 | H23: Revise 9/01/2020 | L23: x | M23: x | O23: x | Q23: x | R23: x | T23: x | V23: x
B24: TCRF - Non-IDR Metered | C24: TRN002 | D24: 2.14806 | E24: per NCP kW | F24: 49580 | G24: 2019-09-01 | H24: Revise 9/01/2020 | I24: x | J24: x | K24: x | N24: x | P24: x | S24: x | U24: x
A25: TC-3 (Transition Charge-3) | I25: x | J25: x | K25: x | L25: x | M25: x | N25: x | O25: x | P25: x | Q25: x | R25: x | S25: x | T25: x | U25: x | V25: x
B26: Commercial & Small Industrial - Energy | C26: MSC037 | D26: 0.008087 | E26: per kWh | F26: 49219 | G26: 2019-02-28 | H26: Revise 2/28/2020 | I26: x | P26: x | Q26: x | S26: x | T26: x
B27: Commercial & Small Industrial - Demand | C27: MSC037 | D27: 0.764521 | E27: per kW | F27: 49219 | G27: 2019-02-28 | H27: Revise 2/28/2020 | N27: x | O27: x | U27: x | V27: x
B28: Municipal Water Pumping and Cotton Gin | C28: MSC037 | D28: 0.004556 | E28: per kWh | F28: 49219 | G28: 2019-02-28 | H28: Revise 2/28/2019 | J28: x | K28: x | L28: x | M28: x
B29: Standby Firm | C29: MSC037 | D29: 0.069687 | E29: per daily kW | F29: 49219 | G29: 2019-02-28 | H29: Revise 2/28/2020 | R29: x
A30: TC-2 (Transition Charge-2) | I30: x | J30: x | K30: x | L30: x | M30: x | N30: x | O30: x | P30: x | Q30: x | R30: x | S30: x | T30: x | U30: x | V30: x
B31: Commercial & Small Industrial - Energy | C31: MSC036 | D31: 0.019294 | E31: per kWh | F31: 49553 | G31: 2019-08-28 | H31: Revise 8/28/2020 | I31: x | P31: x | Q31: x | S31: x | T31: x
B32: Commercial & Small Industrial - Demand | C32: MSC036 | D32: 2.280098 | E32: per kW | F32: 49553 | G32: 2019-08-28 | H32: Revise 8/28/2020 | N32: x | O32: x | U32: x | V32: x
B33: Municipal Water Pumping and Cotton Gin | C33: MSC036 | D33: 0.013931 | E33: per kWh | F33: 49553 | G33: 2019-08-28 | H33: Revise 8/28/2020 | J33: x | K33: x | L33: x | M33: x
B34: Standby Firm | C34: MSC036 | D34: 0.21875 | E34: per daily kW | F34: 49553 | G34: 2019-08-28 | H34: Revise 8/28/2020 | R34: x
A35: DCRF-Distribution Cost Recovery Factor | I35: x | J35: x | K35: x | L35: x | M35: x | N35: x | O35: x | P35: x | Q35: x | R35: x | S35: x | T35: x | U35: x | V35: x
B36: Commercial Energy with IDR | C36: MSC042 | D36: 0.45944 | E36: per KW | F36: 48222 | G36: 2018-09-01 | H36: Not Scheduled | I36: x | P36: x | Q36: x | S36: x | T36: x
B37: Commercial Demand with IDR | C37: MSC042 | D37: 0.45944 | E37: per kW | F37: 48222 | G37: 2018-09-01 | H37: Not Scheduled | N37: x | O37: x | U37: x | V37: x
B38: Municipal Water Pumping with IDR | C38: MSC042 | D38: 0.45944 | E38: per kW | F38: 48222 | G38: 2018-09-01 | H38: Not Scheduled | J38: x | K38: x | L38: x | M38: x
B39: Commercial Demand TC/CTC (Machine billed-4CP | C39: MSC042 | D39: 0.45944 | E39: per average 4CP kW | F39: 48222 | G39: 2018-09-01 | H39: Not Scheduled | R39: x
A40: SRC - System Restoration Charge Factor | C40: MSC038 | D40: 0.297415 | E40: per kW | F40: 49308 | G40: 2019-09-18 | H40: Revised 9/18/2020 | I40: x | J40: x | K40: x | L40: x | M40: x | N40: x | O40: x | P40: x | Q40: x | R40: x | S40: x | T40: x | U40: x | V40: x
A41: ADIFIT- Accumulated Deferred Federal Income Tax Credit | C41: CRE031 | D41: -0.033988 | E41: per kW | F41: 49308 | G41: 2019-09-18 | H41: Revised 9/18/2020 | I41: x | J41: x | K41: x | L41: x | M41: x | N41: x | O41: x | P41: x | Q41: x | R41: x | S41: x | T41: x | U41: x | V41: x
A42: MSC - Merger Savings Credit | I42: x | J42: x | K42: x | L42: x | M42: x | N42: x | O42: x | P42: x | Q42: x | R42: x | S42: x | T42: x | U42: x | V42: x
B43: MSC - IDR Metered | C43: RRR008 | D43: 0.196114 | E43: per kW | F43: 2034-03-25 | G43: 2019-08-28 | H43: Cr. Sept. 2019 Only | L43: x | M43: x | O43: x | Q43: x | R43: x | T43: x | V43: x
B44: MSC - Non IDR Metered | C44: RRR008 | D44: 0.227232 | E44: per kW | F44: 49028 | G44: 2019-08-28 | H44: Cr. Sept. 2019 Only | I44: x | J44: x | K44: x | N44: x | P44: x | S44: x | U44: x
I68: x | J68: x | K68: x | L68: x | M68: x | N68: x | O68: x | P68: x | Q68: x | R68: x | S68: x | T68: x | U68: x | V68: x

Sheet TCCPrimary
A1: AEP Texas - Central Area
A2: =IF(A3="All Rate Codes","Billing Determinants for","Billing Determinants for Rate Code") -> Billing Determinants for
A3: All Rate Codes
A4: =IF(A3="All Rate Codes","",VLOOKUP(A3,'TCCRate code Table'!A8:C202,3,FALSE)) -> 
A5: PRIMARY VOLTAGE SERVICE
C6: 810_02 | H6: Estimated
C7: SAC04 | D7: Approved Rate | F7: Docket | G7: Effective | H7: Revision or | I7: Applicable Rate Codes
A8: Description of Charge or Rider | C8: Code | D8: Cost / Unit | F8: Number | G8: Date | H8: Termination Date | I8: 841 | J8: 842 | K8: 844 | L8: 845 | M8: 846 | N8: 847 | O8: 848 | P8: 849
A9: BASE CHARGES | I9: x | J9: x | K9: x | L9: x | M9: x | N9: x | O9: x | P9: x
A10: Customer Charge (non-IDR Metered) | C10: BAS001 | D10: 3.8 | E10: per month | F10: 34561 | G10: 2008-03-31 | H10: Not Scheduled | I10: x | K10: x | M10: x | O10: x
A11: Customer Charge (IDR Metered) | C11: BAS001 | D11: 28.41 | E11: per month | F11: 34561 | G11: 2008-03-31 | H11: Not Scheduled | J11: x | L11: x | N11: x | P11: x
A12: Metering Charge | C12: BAS003 | D12: 154.62 | E12: per month | F12: 34561 | G12: 2008-03-31 | H12: Not Scheduled | I12: x | J12: x | K12: x | L12: x | M12: x | N12: x | O12: x | P12: x
A13: Transmission System Charge (non-IDR Metered) | C13: TRN001 | D13: 1.628 | E13: per NCP kW | F13: 34561 | G13: 2008-03-31 | H13: Not Scheduled | I13: x | K13: x | M13: x | O13: x
A14: Transmission System Charge (IDR Metered) | C14: TRN001 | D14: 1.925 | E14: per 4CP kW | F14: 34561 | G14: 2008-03-31 | H14: Not Scheduled | J14: x | L14: x | N14: x | P14: x
A15: Distribution System Charge | C15: DIS001 | D15: 2.945 | E15: per NCP kW | F15: 34561 | G15: 2008-03-31 | H15: Not Scheduled | I15: x | J15: x | K15: x | L15: x | M15: x | N15: x | O15: x | P15: x
A17: RIDER CHARGES | I17: x | J17: x | K17: x | L17: x | M17: x | N17: x | O17: x | P17: x
A18: SBF (System Benefit Fund) | C18: MSC024 | D18: 0.000000 | E18: per kWh | F18: 46050 | G18: 2017-01-01 | H18: Revise 1/01/2017 | I18: x | J18: x | K18: x | L18: x | M18: x | N18: x | O18: x | P18: x
A19: EECRF (Energy Efficiency Cost Recovery Factor) | C19: MSC041 | D19: 0.000437 | E19: per kWh | F19: 48422 | G19: 2019-03-01 | H19: Revise 3/01/2020 | I19: x | J19: x | K19: x | L19: x | M19: x | N19: x | O19: x | P19: x
A20: AMSCRF | B20: (Advanced Metering System Cost Recovery Fee) | C20: MSC039 | D20: -7.07 | E20: per month | F20: 36928 | G20: 2014-01-29 | H20: Revise 12/29/2020 | I20: x | K20: x | M20: x | O20: x
A21: NDC (Nuclear Decommissioning Collections) | C21: MSC025 | D21: 0.011525 | E21: per kW | F21: 49163 | G21: 2019-05-30 | H21: Not Scheduled | I21: x | J21: x | K21: x | L21: x | M21: x | N21: x | O21: x | P21: x
A22: TCRF (Transmission Cost Recovery Factor) | I22: x | J22: x | K22: x | L22: x | M22: x | N22: x | O22: x | P22: x
B23: IDR Metered | C23: TRN002 | D23: 3.867986 | E23: per 4CP kW | F23: 49580 | G23: 2019-09-01 | H23: Revise 9/01/2020 | J23: x | L23: x | N23: x | P23: x
B24: Non-IDR Metered | C24: TRN002 | D24: 3.377702 | E24: per kW | F24: 49580 | G24: 2019-09-01 | H24: Revise 9/01/2020 | I24: x | K24: x | M24: x | O24: x
A25: TC-3 (Transition Charge-3) | I25: x | J25: x | K25: x | L25: x | M25: x | N25: x | O25: x | P25: x
B26: Commercial & Small Industrial - Energy | C26: MSC037 | D26: 0.008087 | E26: per kWh | F26: 49219 | G26: 2019-02-28 | H26: Revise 2/28/2020 | K26: x | L26: x
B27: Commercial & Small Industrial - Demand | C27: MSC037 | D27: 0.764521 | E27: per kW | F27: 49219 | G27: 2019-02-28 | H27: Revise 2/28/2020 | I27: x | J27: x | M27: x | N27: x
B28: Municipal Water Pumping and Cotton Gin | C28: MSC037 | D28: 0.004556 | E28: per kWh | F28: 49219 | G28: 2019-02-28 | H28: Revise 2/28/2020 | O28: x | P28: x
A29: TC-2 (Transition Charge-2) | I29: x | J29: x | K29: x | L29: x | M29: x | N29: x | O29: x | P29: x
B30: Commercial & Small Industrial - Energy | C30: MSC036 | D30: 0.019294 | E30: per kWh | F30: 49553 | G30: 2019-08-28 | H30: Revise 8/28/2020 | K30: x | L30: x
B31: Commercial & Small Industrial - Demand | C31: MSC036 | D31: 2.280098 | E31: per kW | F31: 49553 | G31: 2019-08-28 | H31: Revise 8/28/2020 | I31: x | J31: x | M31: x | N31: x
B32: Municipal Water Pumping and Cotton Gin | C32: MSC036 | D32: 0.013931 | E32: per kWh | F32: 49553 | G32: 2019-08-28 | H32: Revise 8/28/2020 | O32: x | P32: x
A33: DCRF-Distribution Cost Recovery Factor | I33: x | J33: x | K33: x | L33: x | M33: x | N33: x | O33: x | P33: x
B34: Irrigation with IDR | C34: MSC042 | D34: 0.364619 | E34: per kW | F34: 48222 | G34: 2018-09-01 | H34: Revise 9-01-2019 | K34: x | L34: x
B35: Seasonal Ag with IDR | C35: MSC042 | D35: 0.364619 | E35: per kW | F35: 48222 | G35: 2018-09-01 | H35: Not Scheduled | I35: x | J35: x | M35: x | N35: x
B36: Municipal Water Pumping with IDR | C36: MSC042 | D36: 0.364619 | E36: per kW | F36: 48222 | G36: 2018-09-01 | H36: Not Scheduled | O36: x | P36: x
A37: SRC - System Restoration Charge Factor | C37: MSC038 | D37: 0.238983 | E37: per kW | F37: 49308 | G37: 2019-09-18 | H37: Revised 9/18/2020 | I37: x | J37: x | K37: x | L37: x | M37: x | N37: x | O37: x | P37: x
A38: ADIFIT- Accumulated Deferred Federal Income Tax Credit | C38: CRE031 | D38: -0.027311 | E38: per kW | F38: 49308 | G38: 2019-09-18 | H38: Revised 9/18/2020 | I38: x | J38: x | K38: x | L38: x | M38: x | N38: x | O38: x | P38: x
A39: MSC - Merger Savings Credit | I39: x | J39: x | K39: x | L39: x | M39: x | N39: x | O39: x | P39: x
B40: MSC - IDR Metered | C40: RRR008 | D40: -0.201489 | E40: per kW | F40: 49028 | G40: 2019-08-28 | H40: Cr. Sept.2019 Only | J40: x | L40: x | N40: x | P40: x
B41: MSC - Non IDR Metered | C41: RRR008 | D41: -0.224391 | E41: per kW | F41: 49028 | G41: 2019-08-28 | H41: Cr. Sept.2019 Only | I41: x | K41: x | M41: x | O41: x
I68: x | J68: x | K68: x | L68: x | M68: x | N68: x | O68: x | P68: x

Sheet TCCTrans
A1: AEP Texas - Central Area
A2: =IF(A3="All Rate Codes","Billing Determinants for","Billing Determinants for Rate Code") -> Billing Determinants for
A3: All Rate Codes
A4: =IF(A3="All Rate Codes","",VLOOKUP(A3,'TCCRate code Table'!A8:C202,3,FALSE)) -> 
A5: TRANSMISSION VOLTAGE SERVICE
C6: 810_02 | H6: Estimated
C7: SAC04 | D7: Approved Rate | F7: Docket | G7: Effective | H7: Revision or | I7: Applicable Rate Codes
A8: Description of Charge or Rider | C8: Code | D8: Cost / Unit | F8: Number | G8: Date | H8: Termination Date | I8: 860 | J8: 863 | K8: 864 | L8: 865 | M8: 866 | N8: 870 | O8: 871 | P8: 872 | Q8: 873 | R8: 874 | S8: 875
I9: X | J9: X | K9: X | L9: X | M9: X | N9: X | O9: X | P9: X | Q9: X | R9: X | S9: X
I10: X | J10: X | K10: X | L10: X | M10: X | N10: X | O10: X | P10: X | Q10: X | R10: X | S10: X
B11: Contact your AEP CRR Account Manager for details associated with this rate | I11: X | J11: X | K11: X | L11: X | M11: X | N11: X | O11: X | P11: X | Q11: X | R11: X | S11: X
I12: X | J12: X | K12: X | L12: X | M12: X | N12: X | O12: X | P12: X | Q12: X | R12: X | S12: X
I13: X | J13: X | K13: X | L13: X | M13: X | N13: X | O13: X | P13: X | Q13: X | R13: X | S13: X
I14: X | J14: X | K14: X | L14: X | M14: X | N14: X | O14: X | P14: X | Q14: X | R14: X | S14: X
I15: X | J15: X | K15: X | L15: X | M15: X | N15: X | O15: X | P15: X | Q15: X | R15: X | S15: X
I16: X | J16: X | K16: X | L16: X | M16: X | N16: X | O16: X | P16: X | Q16: X | R16: X | S16: X

Sheet TCC StreetLgt
A1: AEP Texas - Central Area
A2: =IF(A3="All Rate Codes","Billing Determinants for","Billing Determinants for Rate Code") -> Billing Determinants for
A3: All Rate Codes
A4: =IF(A3="All Rate Codes","",VLOOKUP(A3,'TCCRate code Table'!A8:C202,3,FALSE)) -> 
A5: MUNICIPAL STREET LIGHTING SERVICE
C6: 810_02 | H6: Estimated | I6: Monthly Facilities Rate
C7: SAC04 | D7: Approved Rate | F7: Docket | G7: Effective | H7: Revision or | I7: Rate | K7: kWh | L7: Facility
A8: Description of Charge or Rider | C8: Code | D8: Cost / Unit | F8: Number | G8: Date | H8: Termination Date | I8: Code | J8: Description | K8: Usage | L8: Price
A9: BASE CHARGES | J9: Mercury Vapor (MV)
A10: Customer Charge | C10: BAS001 | D10: 3.2 | E10: per month | F10: 35093 | G10: 2008-01-30 | H10: Not Scheduled | I10: 931 | J10: MV 100 Watt | K10: 40 | L10: 4.1
A11: Monthly Facilities Charge | I11: 932 | J11: MV 175 Watt | K11: 75 | L11: 4.64
B12: =IF(A$3="All Rate Codes","(varies by light type - See table to right)",VLOOKUP(A$3,I$9:L$68,2,FALSE)) -> (varies by light type - See table to right) | C12: ODL003 | D12: =IF(A$3="All Rate Codes","See Table",VLOOKUP(A$3,I$9:L$68,4,FALSE)) -> See Table | E12: per month per light | F12: 35093 | G12: 2008-01-30 | H12: Not Scheduled | I12: 933 | J12: MV 250 Watt | K12: 100 | L12: 6.35
B13: kWh usage per light | D13: =IF(A$3="All Rate Codes"," See Table",VLOOKUP(A$3,I$9:L$68,3,FALSE)) -> See Table | E13: kWh per month per light | I13: 935 | J13: MV 400 Watt | K13: 145 | L13: 7.61
A14: Transmission System Charge | C14: TRN001 | D14: 0.002512 | E14: per kWh | F14: 35093 | G14: 2008-01-30 | H14: Not Scheduled | I14: 937 | J14: MV 1000 Watt | K14: 365 | L14: 10.71
A15: Distribution System Charge | C15: DIS001 | D15: 0.015489 | E15: per kWh | F15: 35093 | G15: 2008-01-30 | H15: Not Scheduled | I15: 938 | J15: Twin MV 400 Watt | K15: 290 | L15: 11.78
J16: Metal Halide (MH)
A17: RIDER CHARGES | I17: 959 | J17: MH 150 Watt | K17: 65 | L17: 6.7
A18: SBF (System Benefit Fund) | C18: MSC024 | D18: 0.000000 | E18: per kWh | F18: 35093 | G18: 2013-09-01 | H18: Revise 9/1/13 | I18: 960 | J18: MH 175 Watt | K18: 75 | L18: 6.7
A19: NDC (Nuclear Decommissioning Collections) | C19: MSC025 | D19: 3.5e-05 | E19: per kWh | F19: 49163 | G19: 2019-05-30 | H19: Not Scheduled | I19: 961 | J19: MH 250 Watt | K19: 105 | L19: 6.9
A20: TCRF (Transmission Cost Recovery Factor) | C20: TRN002 | D20: 0.004774 | E20: per kWh | F20: 49580 | G20: 2019-09-01 | H20: Revise 9/01/2020 | I20: 962 | J20: MH 400 Watt | K20: 155 | L20: 7.27
A21: TC-3 (Transition Charge-3) | I21: 964 | J21: Twin MH 250 Watt | K21: 210 | L21: 11.04
B22: Municipal Water Pumping and Cotton Gin | C22: MSC037 | D22: 0.004556 | E22: per kWh | F22: 49219 | G22: 2019-02-28 | H22: Revise 2/28/2020 | I22: 965 | J22: Twin MH 400 Watt | K22: 310 | L22: 11.66
A23: TC-2 (Transition Charge-2) | I23: 966 | J23: MH 1000 Watt | K23: 367 | L23: 8.67
B24: Municipal Water Pumping and Cotton Gin | C24: MSC036 | D24: 0.013931 | E24: per kWh | F24: 49553 | G24: 2019-08-28 | H24: Revise 8/28/2020 | J24: High Pressure Sodium (HPS)
A25: DCRF-Distribution Cost Recovery Factor | I25: 944 | J25: HPS 70 Watt | K25: 35 | L25: 4.12
B26: Municipal Street Lighting Service | C26: MSC042 | D26: 0.005796 | E26: per kWh | F26: 32475 | G26: 2018-09-01 | H26: Not Scheduled | I26: 945 | J26: HPS 100 Watt | K26: 39 | L26: 4.21
A27: SRC - System Restoration Charge Factor | C27: MSC038 | D27: 0.008215 | E27: per kWh | F27: 49308 | G27: 2019-09-18 | H27: Revise 9/18/2020 | I27: 946 | J27: HPS 150 Watt | K27: 70 | L27: 4.33
A28: ADIFIT- Accumulated Deferred Federal Income Tax Credit | C28: CRE031 | D28: -0.000939 | E28: per kWh | F28: 49308 | G28: 2019-09-18 | H28: Revise 9/18/2020 | I28: 947 | J28: HPS 250 Watt | K28: 105 | L28: 6.06
A29: MSC - Merger Savings Credit | C29: RRR008 | D29: -0.003005 | E29: per kWh | F29: 49028 | G29: 2019-08-28 | H29: Cr. Sept. 2019 Only | I29: 949 | J29: HPS 400 Watt | K29: 165 | L29: 6.57
I30: 952 | J30: Twin HPS 150 Watt | K30: 140 | L30: 6.4
I31: 953 | J31: Twin HPS 250 Watt | K31: 210 | L31: 9.86
I32: 954 | J32: Twin HPS 400 Watt | K32: 330 | L32: 10.86
I33: 955 | J33: HPS 1000 Watt | K33: 367 | L33: 5.55
J34: Select Cities Only
I35: 975 | J35: MH 400 Watt Select Cities | K35: 155 | L35: 11.39
I36: 976 | J36: MH 175 Watt Post Top - Select Cities | K36: 75 | L36: 19.2
I37: 977 | J37: HPS 100 Watt Post Top - Select Cities | K37: 39 | L37: 18.6
I38: 978 | J38: MH 150 Watt Post Top - Select Cities | K38: 65 | L38: 19.2

Sheet TCC NonRoadway
A1: AEP Texas - Central Area
A2: =IF(A3="All Rate Codes","Billing Determinants for","Billing Determinants for Rate Code") -> Billing Determinants for
A3: All Rate Codes
A4: =IF(A3="All Rate Codes","",VLOOKUP(A3,'TCCRate code Table'!A8:C202,3,FALSE)) -> 
A5: NON-ROADWAY LIGHTING SERVICE
C6: 810_02 | H6: Estimated | I6: Monthly Facilities Rate
C7: SAC04 | D7: Approved Rate | F7: Docket | G7: Effective | H7: Revision or | I7: Rate | K7: kWh | L7: Facility
A8: Description of Charge or Rider | C8: Code | D8: Cost / Unit | F8: Number | G8: Date | H8: Termination Date | I8: Code | J8: Description | K8: Usage | L8: Price
A9: BASE CHARGES | I9: Security Lighting
J10: Mercury Vapor (MV)
A11: Monthly Facilities Charge | I11: 901 | J11: MV 175 Watt Security Light | K11: 75 | L11: 3.17
B12: =IF(A$3="All Rate Codes","(varies by light type - See table to right)",VLOOKUP(A$3,I$9:L$68,2,FALSE)) -> (varies by light type - See table to right) | C12: ODL005 | D12: =IF(A$3="All Rate Codes","See Table",VLOOKUP(A$3,I$9:L$68,4,FALSE)) -> See Table | E12: per month per light | F12: 35093 | G12: 2008-01-30 | H12: Not Scheduled | I12: 902 | J12: MV 400 Watt Security Light | K12: 145 | L12: 3.91
B13: kWh usage per light | D13: =IF(A$3="All Rate Codes"," See Table",VLOOKUP(A$3,I$9:L$68,3,FALSE)) -> See Table | E13: kWh per month per light | J13: High Pressure Sodium (HPS)
A14: Transmission System Charge | C14: TRN001 | D14: 0.002512 | E14: per kWh | F14: 35093 | G14: 2008-01-30 | H14: Not Scheduled | I14: 903 | J14: HPS 100 Watt Security Light | K14: 39 | L14: 2.94
A15: Distribution System Charge | C15: DIS001 | D15: 0.015489 | E15: per kWh | F15: 35093 | G15: 2008-01-30 | H15: Not Scheduled | I15: 904 | J15: HPS 150 Watt Security Light | K15: 70 | L15: 3.11
I16: 905 | J16: HPS 250 Watt Security Light | K16: 105 | L16: 3.6
A17: RIDER CHARGES | I17: Flood Lighting
A18: SBF (System Benefit Fund) | C18: MSC024 | D18: 0.000000 | E18: per kWh | F18: 46050 | G18: 2017-01-01 | H18: Revise 1/01/2017 | J18: High Pressure Sodium (HPS)
A19: NDC (Nuclear Decommissioning Collections) | C19: MSC025 | D19: 3.5e-05 | E19: per kWh | F19: 49163 | G19: 2019-05-30 | H19: Not Scheduled | I19: 906 | J19: HPS 100 Watt Flood Light | K19: 39 | L19: 3.6
A20: TCRF (Transmission Cost Recovery Factor) | C20: TRN002 | D20: 0.004774 | E20: per kWh | F20: 49580 | G20: 2019-09-01 | H20: Revise 9/01/2020 | I20: 907 | J20: HPS 250 Watt Flood Light | K20: 105 | L20: 3.99
A21: TC-3 (Transition Charge-3) | I21: 908 | J21: HPS 400 Watt Flood Light | K21: 155 | L21: 5.07
B22: Residential | C22: MSC037 | D22: 0.002897 | E22: per kWh | F22: 49219 | G22: 2019-02-28 | H22: Revise 2/28/2020 | I22: 909 | J22: HPS 1000 Watt Flood Light | K22: 367 | L22: 5.55
B23: Commercial & Small Industrial - Energy | C23: MSC037 | D23: 0.008087 | E23: per kWh | F23: 49219 | G23: 2019-02-28 | H23: Revise 2/28/2020 | J23: Metal Halide (MH)
A24: TC-2 (Transition Charge-2) | I24: 910 | J24: MH 250 Watt Flood Light | K24: 105 | L24: 5.21
B25: Residential | C25: MSC036 | D25: 0.008816 | E25: per kWh | F25: 49553 | G25: 2019-08-28 | H25: Revise 8/28/2020 | I25: 911 | J25: MH 400 Watt Flood Light | K25: 155 | L25: 5.59
B26: Commercial & Small Industrial - Energy | C26: MSC036 | D26: 0.019294 | E26: per kWh | F26: 49553 | G26: 2019-08-28 | H26: Revise 8/28/2020 | I26: 912 | J26: MH 1000 Watt Flood Light 6x7 NBP | K26: 367 | L26: 6.67
A27: DCRF-Distribution Cost Recovery Factor | I27: 913 | J27: MH 1000 Watt Flood Light 3x3 NBP | K27: 367 | L27: 6.67
B28: Residential | C28: MSC042 | D28: 0.008348 | E28: per kWh | F28: 32475 | G28: 2018-08-28 | H28: Not Scheduled
B29: Commercial & Small Industrial - Energy | C29: MSC042 | D29: 0.017772 | E29: per kWh | F29: 32475 | G29: 2018-08-28 | H29: Not Scheduled
A30: SRC - System Restoration Charge Factor | C30: MSC038 | D30: 0.008215 | E30: per kWh | F30: 49308 | G30: 2019-09-18 | H30: Revised 9/18/2020
A31: ADIFIT- Accumulated Deferred Federal Income Tax Credit | C31: CRE031 | D31: -0.000939 | E31: per kWh | F31: 49308 | G31: 2019-09-18 | H31: Revised 9/18/2020
A32: MSC - Merger Savings Credit | C32: RRR008 | D32: -0.003005 | E32: per kWh | F32: 49028 | G32: 2019-08-28 | H32: Cr.Sept. 2019 Only

Sheet TNCResidential
A1: AEP Texas - North Area
A2: =IF(A3="All Rate Codes","Billing Determinants for","Billing Determinants for Rate Code") -> Billing Determinants for
A3: All Rate Codes
A4: =IF(A3="All Rate Codes","",VLOOKUP(A3,'TNCRate code Table'!A8:C206,3,FALSE)) -> 
A5: RESIDENTIAL SERVICE
C6: 810_02 | H6: Estimated
C7: SAC04 | D7: Approved Rate | F7: Docket | G7: Effective | H7: Revision or | I7: Applicable Rate Codes
A8: Description of Charge or Rider | C8: Code | D8: Cost / Unit | F8: Number | G8: Date | H8: Termination Date | I8: 820
A9: BASE CHARGES | I9: x | J9: x | K9: x | L9: x | M9: x | N9: x | O9: x | P9: x | Q9: x
A10: Customer Charge | C10: BAS001 | D10: 2.94 | E10: per month | F10: 33310 | G10: 2007-05-30 | H10: Not Scheduled | I10: x
A11: Metering Charge | C11: BAS003 | D11: 5.24 | E11: per month | F11: 33310 | G11: 2007-05-30 | H11: Not Scheduled | I11: x
A12: Transmission System Charge | C12: TRN001 | D12: 0.005803 | E12: per kWh | F12: 33310 | G12: 2007-05-30 | H12: Not Scheduled | I12: x
A13: Distribution System Charge | C13: DIS001 | D13: 0.019007 | E13: per kWh | F13: 33310 | G13: 2007-05-30 | H13: Not Scheduled | I13: x
A15: RIDER CHARGES | I15: x | J15: x | K15: x | L15: x | M15: x | N15: x | O15: x | P15: x | Q15: x
A16: SBF (System Benefit Fund) | C16: MSC024 | D16: 0.00000 | E16: per kWh | F16: 46050 | G16: 2013-09-01 | H16: Not Scheduled | I16: x
A17: EECRF (Energy Efficiency Cost Recovery Factor) | C17: MSC041 | D17: 0.000743 | E17: per kWh | F17: 48422 | G17: 2019-03-01 | H17: Revise 3/01/2020 | I17: x
A18: AMSCRF | B18: (Advanced Metering System Cost Recovery Fee) | C18: MSC039 | D18: 2.35 | E18: per month | F18: 36928 | G18: 2009-12-30 | H18: Revise 12/29/2020 | I18: x
A19: DCRF-Distribution Cost Recovery Factor | C19: MSC042 | D19: 0.003854 | E19: per kWh | F19: 48222 | G19: 2018-09-01 | H19: Not Scheduled | I19: x
A20: TCRF (Transmission Cost Recovery Factor) | C20: TRN002 | D20: 0.010792 | E20: per kWh | F20: 49580 | G20: 2019-09-01 | H20: Revised 9/1/2020 | I20: x
A21: MSC - Merger Savings Credit | C21: RRR008 | D21: -0.001388 | E21: per kWh | F21: 49028 | G21: 2019-08-28 | H21: Cr. Sept. 2019 Only | I21: x
I68: x | J68: x | K68: x | L68: x | M68: x | N68: x | O68: x | P68: x | Q68: x

Sheet TNCSec<10KW
A1: AEP Texas - North Area
A2: =IF(A3="All Rate Codes","Billing Determinants for","Billing Determinants for Rate Code") -> Billing Determinants for
A3: All Rate Codes
A4: =IF(A3="All Rate Codes","",VLOOKUP(A3,'TNCRate code Table'!A8:C206,3,FALSE)) -> 
A5: SECONDARY VOLTAGE SERVICE LESS THAN OR EQUAL TO 10 KW
C6: 810_02 | H6: Estimated
C7: SAC04 | D7: Approved Rate | F7: Docket | G7: Effective | H7: Revision or | I7: Applicable Rate Codes
A8: Description of Charge or Rider | C8: Code | D8: Cost / Unit | F8: Number | G8: Date | H8: Termination Date | I8: 824 | J8: 825 | K8: 829 | L8: 850 | M8: 852
A9: BASE CHARGES | I9: x | J9: x | K9: x | L9: x | M9: x | N9: X | O9: X | P9: X | Q9: X
A10: Customer Charge | C10: BAS001 | D10: 4.25 | E10: per month | F10: 33310 | G10: 2007-05-30 | H10: Not Scheduled | I10: x | J10: x | K10: x | L10: x | M10: x
A11: Metering Charge | C11: BAS003 | D11: 7.5 | E11: per month | F11: 33310 | G11: 2007-05-30 | H11: Not Scheduled | I11: x | J11: x | K11: x
A12: Transmission System Charge | C12: TRN001 | D12: 0.003148 | E12: per kWh | F12: 33310 | G12: 2007-05-30 | H12: Not Scheduled | I12: x | J12: x | K12: x | L12: x | M12: x
A13: Distribution System Charge | C13: DIS001 | D13: 0.031948 | E13: per kWh | F13: 33310 | G13: 2007-05-30 | H13: Not Scheduled | I13: x | J13: x | K13: x | L13: x | M13: x
A15: RIDER CHARGES | I15: x | J15: x | K15: x | L15: x | M15: x | P15: X | Q15: X
A16: SBF (System Benefit Fund) | C16: MSC024 | D16: 0.000000 | E16: per kWh | F16: 46050 | G16: 2013-09-01 | H16: Not Scheduled | I16: x | J16: x | K16: x | L16: x | M16: x
A17: AMSCRF | B17: (Advanced Metering System Cost Recovery Fee) | C17: MSC039 | D17: 4.4 | E17: per month | F17: 36928 | G17: 2009-12-30 | H17: Revise 12/29/2020 | I17: x | J17: x | K17: x | L17: x | M17: x
A18: EECRF (Energy Efficiency Cost Recovery Factor) | C18: MSC041 | D18: 0.000212 | E18: per kWh | F18: 48422 | G18: 2019-03-01 | H18: Revise 3/01/2020 | I18: x | J18: x | K18: x | L18: x | M18: x
A19: DCRF-Distribution Cost Recovery Factor | C19: MDC042 | D19: 0.010585 | E19: per kWh | F19: 48222 | G19: 2018-09-01 | H19: Not Scheduled | I19: x | J19: x | K19: x | L19: x | M19: x
A20: TCRF (Transmission Cost Recovery Factor) | C20: TRN002 | D20: 0.006907 | E20: per kWh | F20: 49580 | G20: 2019-09-01 | H20: Revise 9/01/2020 | I20: x | J20: x | K20: x | L20: x | M20: x
A21: MSC - Merger Savings Credit | C21: RRR008 | D21: -0.002801 | E21: per kWh | F21: 49028 | G21: 2019-08-28 | H21: Cr. Sept. 2019 Only | I21: x | J21: x | K21: x | L21: x | M21: x
I68: x | J68: x | K68: x | L68: x | M68: x

Sheet TNCSec>=10KW
A1: AEP Texas - North Area
A2: =IF(A3="All Rate Codes","Billing Determinants for","Billing Determinants for Rate Code") -> Billing Determinants for
A3: All Rate Codes
A4: =IF(A3="All Rate Codes","",VLOOKUP(A3,'TNCRate code Table'!A8:C206,3,FALSE)) -> 
A5: SECONDARY VOLTAGE SERVICE GREATER THAN 10 KW
C6: 810_02 | H6: Estimated Next
C7: SAC04 | D7: Approved Rate | F7: Docket | G7: Effective | H7: Revision or | I7: Applicable Rate Codes
A8: Description of Charge or Rider | C8: Code | D8: Cost / Unit | F8: Number | G8: Date | H8: Termination Date | I8: 830 | J8: 831 | K8: 832 | L8: 833 | M8: 835 | N8: 836 | O8: 837 | P8: 838 | Q8: 839 | R8: 857 | S8: 858
A9: BASE CHARGES | I9: x | J9: x | K9: x | L9: x | M9: x | N9: x | O9: x | P9: x | Q9: x | R9: x | S9: x | T9: X | U9: X | V9: X
A10: Customer Charge (Non-IDR Metered) | C10: BAS001 | D10: 4.25 | E10: per month | F10: 34561 | G10: 2008-03-31 | H10: Not Scheduled | I10: x | J10: x | K10: x | L10: x | M10: x | N10: x | P10: x | R10: x
A11: Customer Charge (IDR Metered) | C11: BAS001 | D11: 26 | E11: per month | F11: 34561 | G11: 2008-03-31 | H11: Not Scheduled | O11: x | Q11: x | S11: x
A12: Metering Charge (Non-IDR Metered) | C12: BAS003 | D12: 18.68 | E12: per month | F12: 34561 | G12: 2008-03-31 | H12: Not Scheduled | I12: x | J12: x | K12: x | L12: x | M12: x | N12: x | P12: x | R12: x
A13: Metering Charge (IDR Metered) | C13: BAS003 | D13: 35 | E13: per month | F13: 34561 | G13: 2008-03-31 | H13: Not Scheduled | O13: x | Q13: x | S13: x
A14: Transmission System Charge (Non-IDR Metered) | C14: TRN001 | D14: 1.245 | E14: per NCP kW | F14: 34561 | G14: 2008-03-31 | H14: Not Scheduled | I14: x | J14: x | K14: x | L14: x | M14: x | N14: x | P14: x | R14: x
A15: Transmission System Charge (IDR Metered) | C15: TRN001 | D15: 1.953 | E15: per 4CP kW | F15: 34561 | G15: 2008-03-31 | H15: Not Scheduled | O15: x | Q15: x | S15: x
A16: Distribution System Charge | C16: DIS001 | D16: 3.21 | E16: per NCP kW | F16: 34561 | G16: 2008-03-31 | H16: Not Scheduled | I16: x | J16: x | K16: x | L16: x | M16: x | N16: x | O16: x | P16: x | Q16: x | R16: x | S16: x
A18: RIDER CHARGES | I18: x | J18: x | K18: x | L18: x | M18: x | N18: x | O18: x | P18: x | Q18: x | R18: x | S18: x
A19: SBF (System Benefit Fund) | C19: MSC024 | D19: 0.000000 | E19: per kWh | F19: 46050 | G19: 2013-09-01 | H19: Not Scheduled | I19: x | J19: x | K19: x | L19: x | M19: x | N19: x | O19: x | P19: x | Q19: x | R19: x | S19: x
A20: AMSCRF | B20: (Advanced Metering System Cost Recovery Fee) | C20: MSC039 | D20: 1.46 | E20: per month | F20: 36928 | G20: 2009-12-30 | H20: Revise 12/29/2020 | I20: x | J20: x | K20: x | L20: x | M20: x | N20: x | P20: x | R20: x
A21: EECRF (Energy Efficiency Cost Recovery Factor) | C21: MSC041 | D21: 0.000698 | E21: per kWh | F21: 48422 | G21: 2019-03-01 | H21: Revise 3/01/2020 | I21: x | J21: x | K21: x | L21: x | M21: x | N21: x | O21: x | P21: x | Q21: x | R21: x | S21: x
A22: DCRF-Distribution Cost Recovery Factor | C22: MSC042 | D22: 0.679589 | E22: per kW | F22: 48222 | G22: 2018-09-01 | H22: Not Scheduled | I22: x | J22: x | K22: x | L22: x | M22: x | N22: x | O22: x | P22: x | Q22: x | R22: x | S22: x
A23: TCRF (Transmission Cost Recovery Factor) | I23: x | J23: x | K23: x | L23: x | M23: x | N23: x | O23: x | P23: x | Q23: x | R23: x | S23: x
B24: TCRF - IDR Metered | C24: TRN002 | D24: 3.160362 | E24: per average 4CP kW | F24: 49580 | G24: 2019-09-01 | H24: Revise 9/01/2020 | O24: x | Q24: x | S24: x
B25: TCRF - Non-IDR Metered | C25: TRN002 | D25: 2.395434 | E25: per NCP kW | F25: 49580 | G25: 2019-09-01 | H25: Revise 9/01/2020 | I25: x | J25: x | K25: x | L25: x | M25: x | N25: x | P25: x | R25: x
A26: MSC - Merger Savings Credit | I26: x | J26: x | K26: x | L26: x | M26: x | N26: x | O26: x | P26: x | Q26: x | R26: x | S26: x
B27: MSC - IDR Metered | C27: RRR008 | D27: -0.240991 | E27: per kW | F27: 49028 | G27: 2019-08-28 | H27: Cr. Sept. 2019 Only | O27: x | Q27: x | S27: x
B28: MSC - Non IDR Metered | C28: RRR008 | D28: -0.229412 | E28: per kW | F28: 49028 | G28: 2019-08-28 | H28: Cr. Sept. 2019 Only | I28: x | J28: x | K28: x | L28: x | M28: x | N28: x | P28: x | R28: x
I68: x | J68: x | K68: x | L68: x | M68: x | N68: x | O68: x | P68: x | Q68: x | R68: x | S68: x

Sheet TNCPrimary
A1: AEP Texas - North Area
A2: =IF(A3="All Rate Codes","Billing Determinants for","Billing Determinants for Rate Code") -> Billing Determinants for
A3: All Rate Codes
A4: =IF(A3="All Rate Codes","",VLOOKUP(A3,'TNCRate code Table'!A8:C206,3,FALSE)) -> 
A5: PRIMARY VOLTAGE SERVICE
C6: 810_02 | H6: Estimated
C7: SAC04 | D7: Approved Rate | F7: Docket | G7: Effective | H7: Revision or | I7: Applicable Rate Codes
A8: Description of Charge or Rider | C8: Code | D8: Cost / Unit | F8: Number | G8: Date | H8: Termination Date | I8: 841 | J8: 842 | K8: 844 | L8: 845 | M8: 846 | N8: 847
A9: BASE CHARGES | I9: x | J9: x | K9: x | L9: x | M9: x | N9: x | O9: X | P9: X | Q9: X | R9: X | S9: X
A10: Customer Charge (Non-IDR Metered) | C10: BAS001 | D10: 4.25 | E10: per month | F10: 34561 | G10: 2008-03-31 | H10: Not Scheduled | I10: x | K10: x | M10: x
A11: Customer Charge (IDR Metered) | C11: BAS001 | D11: 26 | E11: per month | F11: 34561 | G11: 2008-03-31 | H11: Not Scheduled | J11: x | L11: x | N11: x
A12: Metering Charge (Non-IDR Metered) | C12: BAS003 | D12: 151.75 | E12: per month | F12: 34561 | G12: 2008-03-31 | H12: Not Scheduled | I12: x | K12: x | M12: x
A13: Metering Charge (IDR Metered) | C13: BAS003 | D13: 168.65 | E13: per month | F13: 34561 | G13: 2008-03-31 | H13: Not Scheduled | J13: x | L13: x | N13: x
A14: Transmission System Charge (Non-IDR Metered) | C14: TRN001 | D14: 1.189 | E14: per NCP kW | F14: 34561 | G14: 2008-03-31 | H14: Not Scheduled | I14: x | K14: x | M14: x
A15: Transmission System Charge (IDR Metered) | C15: TRN001 | D15: 1.963 | E15: per 4CP kW | F15: 34561 | G15: 2008-03-31 | H15: Not Scheduled | J15: x | L15: x | N15: x
A16: Distribution System Charge | C16: DIS001 | D16: 1.88 | E16: per NCP kW | F16: 34561 | G16: 2008-03-31 | H16: Not Scheduled | I16: x | J16: x | K16: x | L16: x | M16: x | N16: x
A18: RIDER CHARGES | I18: x | J18: x | K18: x | L18: x | M18: x | N18: x | Q18: X | R18: X | S18: X
A19: SBF (System Benefit Fund) | C19: MSC024 | D19: 0.000000 | E19: per kWh | F19: 46050 | G19: 2013-09-01 | H19: Not Scheduled | I19: x | J19: x | K19: x | L19: x | M19: x | N19: x
A20: EECRF (Energy Efficiency Cost Recovery Factor) | C20: MSC041 | D20: -5.6e-05 | E20: per kWh | F20: 48422 | G20: 2019-03-01 | H20: Revise 3/01/2020 | I20: x | J20: x | K20: x | L20: x | M20: x | N20: x
A21: AMSCRF | B21: (Advanced Metering System Cost Recovery Fee) | C21: MSC039 | D21: 0.22 | E21: per month | F21: 36928 | G21: 2009-12-30 | H21: Revise 12/29/2020 | I21: x | K21: x | M21: x
A22: DCRF-Distribution Cost Recovery Factor | C22: MSC042 | D22: 0.305188 | E22: per kW | F22: 48222 | G22: 2018-09-01 | H22: Not Scheduled | I22: x | J22: x | K22: x | L22: x | M22: x | N22: x
A23: TCRF (Transmission Cost Recovery Factor) | I23: x | J23: x | K23: x | L23: x | M23: x | N23: x | Q23: X | R23: X | S23: X
B24: IDR Metered | C24: TRN002 | D24: 1.877624 | E24: per average 4CP kW | F24: 49580 | G24: 2019-09-01 | H24: Revise 9/01/2020 | J24: x | L24: x | N24: x
B25: Non-IDR Metered | C25: TRN002 | D25: 0.85678 | E25: per kW | F25: 49580 | G25: 2019-09-01 | H25: Revise 9/01/2020 | I25: x | K25: x | M25: x
A26: MSC - Merger Savings Credit | I26: x | J26: x | K26: x | L26: x | M26: x | N26: x
B27: MSC - IDR Metered | C27: RRR008 | D27: -0.157232 | E27: per kW | F27: 49028 | G27: 2019-08-28 | H27: Cr. Sept.2019 Only | J27: x | L27: x | N27: x
B28: MSC - Non IDR Metered | C28: RRR008 | D28: -0.198764 | E28: per kW | F28: 49028 | G28: 2019-08-28 | H28: Cr. Sept.2019 Only | I28: x | K28: x | M28: x
I68: x | J68: x | K68: x | L68: x | M68: x | N68: x

Sheet TNCTrans
A1: AEP Texas - North Area
A2: =IF(A3="All Rate Codes","Billing Determinants for","Billing Determinants for Rate Code") -> Billing Determinants for
A3: All Rate Codes
A4: =IF(A3="All Rate Codes","",VLOOKUP(A3,'TNCRate code Table'!A8:C206,3,FALSE)) -> 
A5: TRANSMISSION VOLTAGE SERVICE
C6: 810_02 | H6: Estimated
C7: SAC04 | D7: Approved Rate | F7: Docket | G7: Effective | H7: Revision or | I7: Applicable Rate Codes
A8: Description of Charge or Rider | C8: Code | D8: Cost / Unit | F8: Number | G8: Date | H8: Termination Date | I8: 860 | J8: 861 | K8: 862
I9: X | J9: X | K9: X | L9: X | M9: X | N9: X | O9: X | P9: X | Q9: X | R9: X | S9: X
I10: X | J10: X | K10: X | L10: X | M10: X | N10: X | O10: X | P10: X | Q10: X | R10: X | S10: X
B11: Contact your AEP CRR Account Manager for details associated with this rate | I11: X | J11: X | K11: X | L11: X | M11: X | N11: X | O11: X | P11: X | Q11: X | R11: X | S11: X
I12: X | J12: X | K12: X | L12: X | M12: X | N12: X | O12: X | P12: X | Q12: X | R12: X | S12: X
I13: X | J13: X | K13: X | L13: X | M13: X | N13: X | O13: X | P13: X | Q13: X | R13: X | S13: X
I14: X | J14: X | K14: X | L14: X | M14: X | N14: X | O14: X | P14: X | Q14: X | R14: X | S14: X
I15: X | J15: X | K15: X | L15: X | M15: X | N15: X | O15: X | P15: X | Q15: X | R15: X | S15: X
I16: X | J16: X | K16: X | L16: X | M16: X | N16: X | O16: X | P16: X | Q16: X | R16: X | S16: X

Sheet TNC StreetLgt
A1: AEP Texas - North Area
A2: =IF(A3="All Rate Codes","Billing Determinants for","Billing Determinants for Rate Code") -> Billing Determinants for
A3: All Rate Codes
A4: =IF(A3="All Rate Codes","",VLOOKUP(A3,'TNCRate code Table'!A8:C206,3,FALSE)) -> 
A5: MUNICIPAL STREET LIGHTING SERVICE
C6: 810_02 | H6: Estimated | I6: Monthly Facilities Rate
C7: SAC04 | D7: Approved Rate | F7: Docket | G7: Effective | H7: Revision or | I7: Rate | K7: kWh | L7: Facility
A8: Description of Charge or Rider | C8: Code | D8: Cost / Unit | F8: Number | G8: Date | H8: Termination Date | I8: Code | J8: Description | K8: Usage | L8: Price
J9: Mercury Vapor (MV)
A10: Customer Charge | C10: BAS001 | D10: 4.25 | E10: per month | F10: 35381 | G10: 2008-03-31 | H10: Not Scheduled | I10: 932 | J10: MV 175 Watt | K10: 70 | L10: 4.84
A11: Monthly Facilities Charge | I11: 935 | J11: MV 400 Watt | K11: 160 | L11: 8.87
B12: =IF(A$3="All Rate Codes","(varies by light type - See table to right)",VLOOKUP(A$3,I$9:L$68,2,FALSE)) -> (varies by light type - See table to right) | C12: BAS003 | D12: =IF(A$3="All Rate Codes","See Table",VLOOKUP(A$3,I$9:L$68,4,FALSE)) -> See Table | E12: per month per Light | F12: 35381 | G12: 2008-03-31 | H12: Not Scheduled | I12: 936 | J12: Twin MV 400 Watt | K12: 320 | L12: 12.5
B13: kWh usage per light | D13: =IF(A$3="All Rate Codes"," See Table",VLOOKUP(A$3,I$9:L$68,3,FALSE)) -> See Table | E13: kWh per mth per Light | J13: High Pressure Sodium (HPS)
A14: Transmission System Charge | C14: TRN001 | D14: 0.003148 | E14: per kWh | F14: 35381 | G14: 2008-03-31 | H14: Not Scheduled | I14: 944 | J14: HPS 70 Watt | K14: 28 | L14: 4.71
A15: Distribution System Charge | C15: DIS001 | D15: 0.028897 | E15: per kWh | F15: 35381 | G15: 2008-03-31 | H15: Not Scheduled | I15: 945 | J15: HPS 100 Watt | K15: 39 | L15: 5.59
I16: 946 | J16: HPS 150 Watt | K16: 57 | L16: 4.97
A17: RIDER CHARGES | I17: 947 | J17: HPS 250 Watt | K17: 104 | L17: 7.39
A18: SBF (System Benefit Fund) | C18: MSC024 | D18: 0.000000 | E18: per kWh | F18: 46050 | G18: 2013-09-01 | H18: Not Scheduled | I18: 948 | J18: Twin HPS 150 Watt | K18: 114 | L18: 12.38
I19: 949 | J19: HPS 400 Watt | K19: 165 | L19: 8.77
A20: DCRF-Distribution Cost Recovery Factor | C20: MSC042 | D20: 0.010585 | E20: per kWh | F20: 48222 | G20: 2018-09-01 | H20: Not Scheduled | I20: 950 | J20: Twin HPS 250 Watt | K20: 208 | L20: 13.76
A21: TCRF (Transmission Cost Recovery Factor) | C21: TRN002 | D21: 0.006907 | E21: per kWh | F21: 49580 | G21: 2019-09-01 | H21: Revise 9-01-2020 | I21: 955 | J21: HPS 1000 Watt | K21: 367 | L21: 5.86
A22: MSC - Merger Savings Credit | C22: RRR008 | D22: -0.005246 | E22: per kWh | F22: 49028 | G22: 2019-08-28 | H22: Cr. Sept. 2019 Only | J22: Low Pressure Sodium (LPS)
I23: 940 | J23: LPS 35 Watt | K23: 24 | L23: 8.93
I24: 941 | J24: LPS 55 Watt | K24: 28 | L24: 9.05
I25: 942 | J25: LPS 90 Watt | K25: 44 | L25: 10.7
I26: 943 | J26: Twin LPS 90 Watt | K26: 88 | L26: 13
J27: Incandescent
I28: 971 | J28: Incandescent 500 Watt | K28: 227 | L28: 7.71
J29: Metal Halide (MH)
I30: 965 | J30: MH 400 Watt | K30: 155 | L30: 9.71
I31: 966 | J31: MH 1000 Watt | K31: 367 | L31: 7.4

Sheet TNC NonRoadway
A1: AEP Texas - North Area
A2: =IF(A3="All Rate Codes","Billing Determinants for","Billing Determinants for Rate Code") -> Billing Determinants for
A3: All Rate Codes
A4: =IF(A3="All Rate Codes","",VLOOKUP(A3,'TNCRate code Table'!A8:C206,3,FALSE)) -> 
A5: NON-ROADWAY LIGHTING SERVICE
C6: 810_02 | H6: Estimated | I6: Monthly Facilities Rate
C7: SAC04 | D7: Approved Rate | F7: Docket | G7: Effective | H7: Revision or | I7: Rate | K7: kWh | L7: Facility
A8: Description of Charge or Rider | C8: Code | D8: Cost / Unit | F8: Number | G8: Date | H8: Termination Date | I8: Code | J8: Description | K8: Usage | L8: Price
A9: BASE CHARGES | I9: Security Lighting
J10: Mercury Vapor (MV)
A11: Monthly Facilities Charge | I11: 901 | J11: MV 175 Watt Security Light | K11: 70 | L11: 4.71
B12: =IF(A$3="All Rate Codes","(varies by light type - See table to right)",VLOOKUP(A$3,I$9:L$68,2,FALSE)) -> (varies by light type - See table to right) | C12: BAS003 | D12: =IF(A$3="All Rate Codes","See Table",VLOOKUP(A$3,I$9:L$68,4,FALSE)) -> See Table | E12: per month per Light | F12: 35381 | G12: 2008-03-31 | H12: Not Scheduled | I12: 902 | J12: MV 400 Watt Security Light | K12: 160 | L12: 6.66
B13: kWh usage per light | D13: =IF(A$3="All Rate Codes"," See Table",VLOOKUP(A$3,I$9:L$68,3,FALSE)) -> See Table | E13: kWh per mth per Light | J13: High Pressure Sodium (HPS)
A14: Transmission System Charge | C14: TRN001 | D14: 0.003148 | E14: per kWh | F14: 35381 | G14: 2008-03-31 | H14: Not Scheduled | I14: 903 | J14: HPS 70 Watt Security Light | K14: 28 | L14: 2.16
A15: Distribution System Charge | C15: DIS001 | D15: 0.028897 | E15: per kWh | F15: 35381 | G15: 2008-03-31 | H15: Not Scheduled | I15: 904 | J15: HPS 150 Watt Security Light | K15: 57 | L15: 2.3
A16: RIDER CHARGES | I16: 915 | J16: HPS 100 Watt Security Light | K16: 39 | L16: 5.06
A17: SBF (System Benefit Fund) | C17: MSC024 | D17: 0.000000 | E17: per kWh | F17: 46050 | G17: 2013-09-01 | H17: Not Scheduled | I17: 916 | J17: HPS 250 Watt Security Light | K17: 105 | L17: 6.22
A18: DCRF-Distribution Cost Recovery Factor | C18: MSC042 | D18: 0.010585 | E18: per kWh | F18: 48222 | G18: 2018-09-01 | H18: Not Scheduled | J18: Low Pressure Sodium (HPS)
A19: TCRF (Transmission Cost Recovery Factor) | C19: TRN002 | D19: 0.006907 | E19: per kWh | F19: 49580 | G19: 2019-09-01 | H19: Revise 9-01-2020 | I19: 905 | J19: LPS 35 Watt Security Light | K19: 24 | L19: 4.09
A20: MSC - Merger Savings Credit | C20: RRR008 | D20: -0.005246 | E20: per kWh | F20: 49028 | G20: 2019-08-28 | H20: Cr. Sept. 2019 Only | I20: 906 | J20: LPS 55 Watt Security Light | K20: 28 | L20: 4.48
I21: 907 | J21: LPS 90 Watt Security Light | K21: 44 | L21: 4.74
I22: Flood Lighting
J23: High Pressure Sodium (HPS)
I24: 908 | J24: HPS 150 Watt Flood Light | K24: 63 | L24: 2.88
I25: 909 | J25: HPS 250 Watt Flood Light | K25: 100 | L25: 3.73
I26: 910 | J26: HPS 400 Watt Flood Light | K26: 158 | L26: 4.23
I27: 911 | J27: HPS 1000 Watt Flood Light | K27: 367 | L27: 5.86
I28: 917 | J28: HPS 100 Watt Flood Light | K28: 39 | L28: 6.23
J29: Metal Halide (MH)
I30: 912 | J30: MH 250 Watt Flood Light | K30: 97 | L30: 5.68
I31: 913 | J31: MH 400 Watt Flood Light | K31: 153 | L31: 6.16
I32: 914 | J32: MH 1000 Watt Flood Light | K32: 367 | L32: 7.4

Sheet Transmission (hidden)
A3: CPL TRANSMISSION SERVICE
A4: =TCCPrimary!A5 -> PRIMARY VOLTAGE SERVICE
E5: 9600000 | F5: KWH
E6: 5500 | F6: KW
E7: =ROUND((E5/E6)/8760,2) -> 0.2
A10: Transmission and Distribution Charges
A11: Customer Charge | B11: 38.84 | D11: per month | E11: =B11 -> 38.84
A12: Metering Charge | B12: 1869.15 | D12: per month | E12: =B12 -> 1869.15
A13: Transmission System Charge | B13: 1.718 | D13: per 4CP kW | E13: =ROUND(E6*B13,2) -> 9449
A14: Distribution System Charge | B14: 0.199 | D14: per NCP kW | E14: =ROUND(E6*B14,2) -> 1094.5
A15: Total Wires Base Bill | E15: =SUM(E11:E14) -> 12451.49
A17: Rider Charges
A18: System Benefit Fund Charge | B18: 0.000624 | D18: per kWh | E18: =ROUND(E5*$B$18,2) -> 5990.4
A19: NDC (Nuclear Decommissioning Collections) | B19: 0.053089 | D19: per kW | E19: =ROUND(E6*$B$19,2) -> 291.99
A20: RCS (Rate Case Surcharge) | B20: 0.00242 | D20: x Base Chgs* | E20: =ROUND((E15+E21)*$B$20,2) -> 32.05
A21: TCRF (Tra. Cost Recovery Factor | B21: 0.143713 | C21: ** | D21: per kW | E21: =ROUND(E6*B21,2) -> 790.42
A22: CTC (Competition Transition Charge) | B22: -1.014596 | D22: per kW | E22: =ROUND(E$6*B22,2) -> -5580.28
A23: TCE (True-Up Case Expenses) | B23: 0.02031 | D23: per kW | E23: =ROUND(E$6*B23,2) -> 111.71
A24: TC-2 Charge (Transition Charge-2) | B24: 1.270126 | D24: per kW | E24: =ROUND(E$6*B24,2) -> 6985.69
A25: TC Charge (L.I. Firm) | B25: 0.801148 | D25: per kW | E25: =ROUND(E6*$B$25,2) -> 4406.31
A26: Total Riders Charges | E26: =SUM(E18:E25) -> 13028.29
A29: Total Wires Bill | E29: =E15+E26 -> 25479.78
A30: Total $ per kWh | E30: =ROUND(E29/$E$5,4) -> 0.0027
A32: Total Bill w/o CTC Credit | E32: =E29-E22 -> 31060.06
A33: Total $ per kWh | E33: =ROUND(E32/$E$5,4) -> 0.0032
A35: Difference | E35: =E32-E29 -> 5580.28
A36: Total $ per kWh | E36: =E33-E30 -> 0.0005
G37: =G30/100 -> 0
A38: * Base Charges includes TCRF
A39: ** Proposed TCRF effective 3/1/08
